Workbook

Sheet 男子スーパー
A1: 男子スーパーリーグ １～７コート
C3: =B4 -> 高知工科大A | D3: =B6 -> 高知工科大B | E3: =B8 -> 高知工科大C | F3: =B10 -> 和歌山商A | G3: =B12 -> 和歌山商B | H3: =B14 -> 高松商A | I3: =B16 -> 高松商B | J3: =B18 -> 高松工芸A | K3: =B20 -> 城南A | L3: =B22 -> 城南B | M3: =B24 -> 松山北A | N3: =B26 -> 松山北B | O3: =B28 -> 松山商A | P3: =B30 -> 松山商B | Q3: =B32 -> 今治西A | R3: 勝敗 | S3: ポイント | T3: 得点率 | U3: 順位 | W3: 勝 | X3: 負 | Y3: 分 | Z3: ポイント | AA3: 試合数 | AB3: 勝率
A4: 1 | B4: 高知工科大A | H4: ○ | I4: ○ | J4: ○ | K4: ○ | L4: ○ | M4: ○ | N4: ○ | O4: ○ | P4: ○ | R4: =W4&" - "&X4&" - "&Y4 -> 9 - 0 - 0 | S4: =Z4 -> 27 | T4: =ROUND(AB4,2) -> 3 | U4: =RANK(AB4,AB$4:AB$33) -> 1 | W4: =COUNTIF(C4:Q4,"○") -> 9 | X4: =COUNTIF(C4:Q4,"×") -> 0 | Y4: =COUNTIF(C4:Q4,"△") -> 0 | Z4: =W4*3+X4*1+Y4*2 -> 27 | AA4: =SUM(W4:Y5) -> 9 | AB4: =Z4/AA4 -> 3
H5: ２－０ | I5: ２－０ | J5: ２－０ | K5: ２－０ | L5: ２－０ | M5: ２－０ | N5: ２－０ | O5: ２－０ | P5: ２－０
A6: 2 | B6: 高知工科大B | F6: ○ | G6: ○ | H6: ○ | K6: ○ | L6: ○ | M6: ○ | N6: ○ | O6: ○ | P6: ○ | R6: =W6&" - "&X6&" - "&Y6 -> 9 - 0 - 0 | S6: =Z6 -> 27 | T6: =ROUND(AB6,2) -> 3 | U6: =RANK(AB6,AB$4:AB$33) -> 1 | W6: =COUNTIF(C6:Q6,"○") -> 9 | X6: =COUNTIF(C6:Q6,"×") -> 0 | Y6: =COUNTIF(C6:Q6,"△") -> 0 | Z6: =W6*3+X6*1+Y6*2 -> 27 | AA6: =SUM(W6:Y7) -> 9 | AB6: =Z6/AA6 -> 3
F7: ２－０ | G7: ２－０ | H7: ２－０ | K7: ２－０ | L7: ２－０ | M7: ２－０ | N7: ２－０ | O7: ２－１ | P7: ２－０
A8: 3 | B8: 高知工科大C | G8: ○ | H8: ○ | I8: ○ | K8: ○ | L8: ○ | N8: ○ | O8: × | P8: ○ | Q8: ○ | R8: =W8&" - "&X8&" - "&Y8 -> 8 - 1 - 0 | S8: =Z8 -> 25 | T8: =ROUND(AB8,2) -> 2.78 | U8: =RANK(AB8,AB$4:AB$33) -> 3 | W8: =COUNTIF(C8:Q8,"○") -> 8 | X8: =COUNTIF(C8:Q8,"×") -> 1 | Y8: =COUNTIF(C8:Q8,"△") -> 0 | Z8: =W8*3+X8*1+Y8*2 -> 25 | AA8: =SUM(W8:Y9) -> 9 | AB8: =Z8/AA8 -> 2.777777778
G9: ２－０ | H9: ２－０ | I9: ２－０ | K9: ２－０ | L9: ２－０ | N9: ２－０ | O9: ０－２ | P9: ２－０ | Q9: ２－１
A10: 4 | B10: 和歌山商A | D10: × | H10: × | I10: × | J10: × | K10: × | L10: ○ | M10: × | N10: △ | O10: × | P10: ○ | Q10: × | R10: =W10&" - "&X10&" - "&Y10 -> 2 - 8 - 1 | S10: =Z10 -> 16 | T10: =ROUND(AB10,2) -> 1.45 | U10: =RANK(AB10,AB$4:AB$33) -> 13 | W10: =COUNTIF(C10:Q10,"○") -> 2 | X10: =COUNTIF(C10:Q10,"×") -> 8 | Y10: =COUNTIF(C10:Q10,"△") -> 1 | Z10: =W10*3+X10*1+Y10*2 -> 16 | AA10: =SUM(W10:Y11) -> 11 | AB10: =Z10/AA10 -> 1.454545455
D11: ０－２ | H11: ０－２ | I11: ０－２ | J11: １－２ | K11: ０－２ | L11: ２－０ | M11: ０－２ | N11: １－１ | O11: ０－２ | P11: ２－０ | Q11: １－２
A12: 5 | B12: 和歌山商B | D12: × | E12: × | H12: × | I12: × | J12: × | K12: × | L12: × | M12: × | N12: × | O12: × | P12: × | Q12: × | R12: =W12&" - "&X12&" - "&Y12 -> 0 - 12 - 0 | S12: =Z12 -> 12 | T12: =ROUND(AB12,2) -> 1 | U12: =RANK(AB12,AB$4:AB$33) -> 15 | W12: =COUNTIF(C12:Q12,"○") -> 0 | X12: =COUNTIF(C12:Q12,"×") -> 12 | Y12: =COUNTIF(C12:Q12,"△") -> 0 | Z12: =W12*3+X12*1+Y12*2 -> 12 | AA12: =SUM(W12:Y13) -> 12 | AB12: =Z12/AA12 -> 1
D13: ０－２ | E13: ０－２ | H13: １－２ | I13: １－２ | J13: １－２ | K13: ０－２ | L13: ０－２ | M13: ０－２ | N13: １－２ | O13: ０－２ | P13: ０－２ | Q13: ０－２
A14: 6 | B14: 高松商A | C14: × | D14: × | E14: × | F14: ○ | G14: ○ | J14: ○ | K14: ○ | L14: ○ | M14: △ | N14: △ | O14: × | P14: ○ | Q14: ○ | R14: =W14&" - "&X14&" - "&Y14 -> 7 - 4 - 2 | S14: =Z14 -> 29 | T14: =ROUND(AB14,2) -> 2.23 | U14: =RANK(AB14,AB$4:AB$33) -> 6 | W14: =COUNTIF(C14:Q14,"○") -> 7 | X14: =COUNTIF(C14:Q14,"×") -> 4 | Y14: =COUNTIF(C14:Q14,"△") -> 2 | Z14: =W14*3+X14*1+Y14*2 -> 29 | AA14: =SUM(W14:Y15) -> 13 | AB14: =Z14/AA14 -> 2.230769231
C15: ０－２ | D15: ０－２ | E15: ０－２ | F15: ２－０ | G15: ２－１ | J15: ２－０ | K15: ２－０ | L15: ２－０ | M15: １－１ | N15: １－１ | O15: １－２ | P15: ２－０ | Q15: ２－１
A16: 7 | B16: 高松商B | C16: × | E16: × | F16: ○ | G16: ○ | J16: ○ | K16: × | L16: ○ | M16: × | N16: × | O16: × | P16: ○ | Q16: × | R16: =W16&" - "&X16&" - "&Y16 -> 5 - 7 - 0 | S16: =Z16 -> 22 | T16: =ROUND(AB16,2) -> 1.83 | U16: =RANK(AB16,AB$4:AB$33) -> 10 | W16: =COUNTIF(C16:Q16,"○") -> 5 | X16: =COUNTIF(C16:Q16,"×") -> 7 | Y16: =COUNTIF(C16:Q16,"△") -> 0 | Z16: =W16*3+X16*1+Y16*2 -> 22 | AA16: =SUM(W16:Y17) -> 12 | AB16: =Z16/AA16 -> 1.833333333
C17: ０－２ | E17: ０－２ | F17: ２－０ | G17: ２－１ | J17: ２－１ | K17: ０－２ | L17: ２－０ | M17: ０－２ | N17: ０－２ | O17: ０－２ | P17: ２－０ | Q17: １－２
A18: 8 | B18: 高松工芸A | C18: × | F18: ○ | G18: ○ | H18: × | I18: × | K18: × | L18: × | M18: × | N18: × | O18: × | P18: △ | Q18: × | R18: =W18&" - "&X18&" - "&Y18 -> 2 - 9 - 1 | S18: =Z18 -> 17 | T18: =ROUND(AB18,2) -> 1.42 | U18: =RANK(AB18,AB$4:AB$33) -> 14 | W18: =COUNTIF(C18:Q18,"○") -> 2 | X18: =COUNTIF(C18:Q18,"×") -> 9 | Y18: =COUNTIF(C18:Q18,"△") -> 1 | Z18: =W18*3+X18*1+Y18*2 -> 17 | AA18: =SUM(W18:Y19) -> 12 | AB18: =Z18/AA18 -> 1.416666667
C19: ０－２ | F19: ２－１ | G19: ２－１ | H19: ０－２ | I19: １－２ | K19: １－２ | L19: ０－２ | M19: ０－２ | N19: １－２ | O19: ０－２ | P19: １－１ | Q19: １－２
A20: 9 | B20: 城南A | C20: × | D20: × | E20: × | F20: ○ | G20: ○ | H20: × | I20: ○ | J20: ○ | M20: × | N20: ○ | O20: × | P20: △ | Q20: × | R20: =W20&" - "&X20&" - "&Y20 -> 5 - 7 - 1 | S20: =Z20 -> 24 | T20: =ROUND(AB20,2) -> 1.85 | U20: =RANK(AB20,AB$4:AB$33) -> 9 | W20: =COUNTIF(C20:Q20,"○") -> 5 | X20: =COUNTIF(C20:Q20,"×") -> 7 | Y20: =COUNTIF(C20:Q20,"△") -> 1 | Z20: =W20*3+X20*1+Y20*2 -> 24 | AA20: =SUM(W20:Y21) -> 13 | AB20: =Z20/AA20 -> 1.846153846
C21: ０－２ | D21: ０－２ | E21: ０－２ | F21: ２－０ | G21: ２－０ | H21: ０－２ | I21: ２－０ | J21: ２－１ | M21: ０－２ | N21: ２－１ | O21: ０－２ | P21: １－１ | Q21: ０－２
A22: 10 | B22: 城南B | C22: × | D22: × | E22: × | F22: × | G22: ○ | H22: × | I22: × | J22: ○ | M22: × | N22: ○ | O22: × | P22: × | Q22: × | R22: =W22&" - "&X22&" - "&Y22 -> 3 - 10 - 0 | S22: =Z22 -> 19 | T22: =ROUND(AB22,2) -> 1.46 | U22: =RANK(AB22,AB$4:AB$33) -> 12 | W22: =COUNTIF(C22:Q22,"○") -> 3 | X22: =COUNTIF(C22:Q22,"×") -> 10 | Y22: =COUNTIF(C22:Q22,"△") -> 0 | Z22: =W22*3+X22*1+Y22*2 -> 19 | AA22: =SUM(W22:Y23) -> 13 | AB22: =Z22/AA22 -> 1.461538462
C23: ０－２ | D23: ０－２ | E23: ０－２ | F23: ０－２ | G23: ２－０ | H23: ０－２ | I23: ０－２ | J23: ２－０ | M23: ０－２ | N23: ２－１ | O23: ０－２ | P23: ０－２ | Q23: １－２
A24: 11 | B24: 松山北A | C24: × | D24: × | F24: ○ | G24: ○ | H24: △ | I24: ○ | J24: ○ | K24: ○ | L24: ○ | O24: ○ | P24: ○ | Q24: ○ | R24: =W24&" - "&X24&" - "&Y24 -> 9 - 2 - 1 | S24: =Z24 -> 31 | T24: =ROUND(AB24,2) -> 2.58 | U24: =RANK(AB24,AB$4:AB$33) -> 4 | W24: =COUNTIF(C24:Q24,"○") -> 9 | X24: =COUNTIF(C24:Q24,"×") -> 2 | Y24: =COUNTIF(C24:Q24,"△") -> 1 | Z24: =W24*3+X24*1+Y24*2 -> 31 | AA24: =SUM(W24:Y25) -> 12 | AB24: =Z24/AA24 -> 2.583333333
C25: ０－２ | D25: ０－２ | F25: ２－０ | G25: ２－０ | H25: １－１ | I25: ２－０ | J25: ２－０ | K25: ２－０ | L25: ２－０ | O25: ２－０ | P25: ２－０ | Q25: ２－０
A26: 12 | B26: 松山北B | C26: × | D26: × | E26: × | F26: △ | G26: ○ | H26: △ | I26: ○ | J26: ○ | K26: × | L26: × | O26: × | P26: ○ | Q26: ○ | R26: =W26&" - "&X26&" - "&Y26 -> 5 - 6 - 2 | S26: =Z26 -> 25 | T26: =ROUND(AB26,2) -> 1.92 | U26: =RANK(AB26,AB$4:AB$33) -> 8 | W26: =COUNTIF(C26:Q26,"○") -> 5 | X26: =COUNTIF(C26:Q26,"×") -> 6 | Y26: =COUNTIF(C26:Q26,"△") -> 2 | Z26: =W26*3+X26*1+Y26*2 -> 25 | AA26: =SUM(W26:Y27) -> 13 | AB26: =Z26/AA26 -> 1.923076923
C27: ０－２ | D27: ０－２ | E27: ０－２ | F27: １－１ | G27: ２－１ | H27: １－１ | I27: ２－０ | J27: ２－１ | K27: １－２ | L27: １－２ | O27: ０－２ | P27: ２－０ | Q27: ２－０
A28: 13 | B28: 松山商A | C28: × | D28: × | E28: ○ | F28: ○ | G28: ○ | H28: ○ | I28: ○ | J28: ○ | K28: ○ | L28: ○ | M28: × | N28: ○ | Q28: ○ | R28: =W28&" - "&X28&" - "&Y28 -> 10 - 3 - 0 | S28: =Z28 -> 33 | T28: =ROUND(AB28,2) -> 2.54 | U28: =RANK(AB28,AB$4:AB$33) -> 5 | W28: =COUNTIF(C28:Q28,"○") -> 10 | X28: =COUNTIF(C28:Q28,"×") -> 3 | Y28: =COUNTIF(C28:Q28,"△") -> 0 | Z28: =W28*3+X28*1+Y28*2 -> 33 | AA28: =SUM(W28:Y29) -> 13 | AB28: =Z28/AA28 -> 2.538461538
C29: ０－２ | D29: １－２ | E29: ２－０ | F29: ２－０ | G29: ２－０ | H29: ２－１ | I29: ２－０ | J29: ２－０ | K29: ２－０ | L29: ２－０ | M29: ０－２ | N29: ２－０ | Q29: ２－０
A30: 14 | B30: 松山商B | C30: × | D30: × | E30: × | F30: × | G30: ○ | H30: × | I30: × | J30: △ | K30: △ | L30: ○ | M30: × | N30: × | Q30: ○ | R30: =W30&" - "&X30&" - "&Y30 -> 3 - 8 - 2 | S30: =Z30 -> 21 | T30: =ROUND(AB30,2) -> 1.62 | U30: =RANK(AB30,AB$4:AB$33) -> 11 | W30: =COUNTIF(C30:Q30,"○") -> 3 | X30: =COUNTIF(C30:Q30,"×") -> 8 | Y30: =COUNTIF(C30:Q30,"△") -> 2 | Z30: =W30*3+X30*1+Y30*2 -> 21 | AA30: =SUM(W30:Y31) -> 13 | AB30: =Z30/AA30 -> 1.615384615
C31: ０－２ | D31: ０－２ | E31: ０－２ | F31: ０－２ | G31: ２－０ | H31: ０－２ | I31: ０－２ | J31: １－１ | K31: １－１ | L31: ２－０ | M31: ０－２ | N31: ０－２ | Q31: ２－１
A32: 15 | B32: 今治西A | E32: × | F32: ○ | G32: ○ | H32: × | I32: ○ | J32: ○ | K32: ○ | L32: ○ | M32: × | N32: × | O32: × | P32: × | R32: =W32&" - "&X32&" - "&Y32 -> 6 - 6 - 0 | S32: =Z32 -> 24 | T32: =ROUND(AB32,2) -> 2 | U32: =RANK(AB32,AB$4:AB$33) -> 7 | W32: =COUNTIF(C32:Q32,"○") -> 6 | X32: =COUNTIF(C32:Q32,"×") -> 6 | Y32: =COUNTIF(C32:Q32,"△") -> 0 | Z32: =W32*3+X32*1+Y32*2 -> 24 | AA32: =SUM(W32:Y33) -> 12 | AB32: =Z32/AA32 -> 2
E33: １－２ | F33: ２－１ | G33: ２－０ | H33: １－２ | I33: ２－１ | J33: ２－１ | K33: ２－０ | L33: ２－１ | M33: ０－２ | N33: ０－２ | O33: ０－２ | P33: １－２
C35: ※ | D35: ポイントは「勝→３点、分→２点、負→１点、棄権→０点」で計算。得点率は「ポイント÷試合数」で計算。
C36: ※ | D36: 高知工科大Aと高知工科大Bは同率、勝ち数も同じで直接対決がないため、同順位。

Sheet 男子一般(予選A)
A1: 男子一般リーグA ８～１４コート
C3: =B4 -> 高松工芸C | D3: =B6 -> 今治西B | E3: =B8 -> 城南C | F3: =B10 -> 高松商D | G3: =B12 -> 観音寺第一A | H3: =B14 -> 松山北C | I3: =B16 -> 新居浜東B | J3: =B18 -> 伊予農業C | K3: =B20 -> 新居浜東C | L3: =B22 -> 松山商D | M3: =B24 -> 新田B | N3: =B26 -> 松山東A | O3: =B28 -> 宇和島東B | P3: =B30 -> 伊予農業A | Q3: 勝敗 | R3: ポイント | S3: 得点率 | T3: 順位 | V3: 勝 | W3: 負 | X3: 分 | Y3: ポイント | Z3: 試合数 | AA3: 勝率
A4: 1 | B4: 高松工芸C | D4: × | E4: × | F4: ○ | G4: × | H4: × | I4: × | J4: × | K4: × | L4: × | M4: ○ | N4: × | O4: × | P4: × | Q4: =V4&" - "&W4&" - "&X4 -> 2 - 11 - 0 | R4: =Y4 -> 17 | S4: =ROUND(AA4,2) -> 1.31 | T4: =RANK(AA4,AA$4:AA$31) -> 14 | V4: =COUNTIF(C4:P4,"○") -> 2 | W4: =COUNTIF(C4:P4,"×") -> 11 | X4: =COUNTIF(C4:P4,"△") -> 0 | Y4: =V4*3+W4*1+X4*2 -> 17 | Z4: =SUM(V4:X5) -> 13 | AA4: =Y4/Z4 -> 1.307692308
D5: ０－１ | E5: ０－２ | F5: ２－１ | G5: １－２ | H5: １－２ | I5: ０－２ | J5: １－２ | K5: ０－２ | L5: ０－２ | M5: ２－０ | N5: ０－２ | O5: ０－２ | P5: ０－２
A6: 2 | B6: 今治西B | C6: ○ | E6: ○ | F6: × | G6: × | H6: × | I6: × | J6: ○ | K6: ○ | L6: × | M6: ○ | N6: × | O6: × | P6: × | Q6: =V6&" - "&W6&" - "&X6 -> 5 - 8 - 0 | R6: =Y6 -> 23 | S6: =ROUND(AA6,2) -> 1.77 | T6: 8 | V6: =COUNTIF(C6:P6,"○") -> 5 | W6: =COUNTIF(C6:P6,"×") -> 8 | X6: =COUNTIF(C6:P6,"△") -> 0 | Y6: =V6*3+W6*1+X6*2 -> 23 | Z6: =SUM(V6:X7) -> 13 | AA6: =Y6/Z6 -> 1.769230769
C7: １－０ | E7: １－０ | F7: １－２ | G7: ０－２ | H7: ０－２ | I7: ０－２ | J7: ２－０ | K7: ２－１ | L7: １－２ | M7: ２－０ | N7: ０－２ | O7: ０－２ | P7: ０－２
A8: 3 | B8: 城南C | C8: ○ | D8: × | F8: × | G8: ○ | H8: × | I8: × | J8: △ | K8: ○ | L8: × | M8: × | N8: × | O8: × | P8: × | Q8: =V8&" - "&W8&" - "&X8 -> 3 - 9 - 1 | R8: =Y8 -> 20 | S8: =ROUND(AA8,2) -> 1.54 | T8: =RANK(AA8,AA$4:AA$31) -> 13 | V8: =COUNTIF(C8:P8,"○") -> 3 | W8: =COUNTIF(C8:P8,"×") -> 9 | X8: =COUNTIF(C8:P8,"△") -> 1 | Y8: =V8*3+W8*1+X8*2 -> 20 | Z8: =SUM(V8:X9) -> 13 | AA8: =Y8/Z8 -> 1.538461538
C9: ２－０ | D9: ０－１ | F9: １－２ | G9: ２－１ | H9: ０－２ | I9: ０－２ | J9: １－１ | K9: ２－０ | L9: ０－２ | M9: １－２ | N9: ０－２ | O9: １－２ | P9: ０－２
A10: 4 | B10: 高松商D | C10: × | D10: ○ | E10: ○ | G10: ○ | H10: ○ | I10: ○ | J10: ○ | K10: △ | L10: △ | M10: ○ | N10: × | O10: ○ | P10: × | Q10: =V10&" - "&W10&" - "&X10 -> 8 - 3 - 2 | R10: =Y10 -> 31 | S10: =ROUND(AA10,2) -> 2.38 | T10: =RANK(AA10,AA$4:AA$31) -> 3 | V10: =COUNTIF(C10:P10,"○") -> 8 | W10: =COUNTIF(C10:P10,"×") -> 3 | X10: =COUNTIF(C10:P10,"△") -> 2 | Y10: =V10*3+W10*1+X10*2 -> 31 | Z10: =SUM(V10:X11) -> 13 | AA10: =Y10/Z10 -> 2.384615385
C11: １－２ | D11: ２－１ | E11: ２－１ | G11: ２－０ | H11: ２－１ | I11: ２－０ | J11: ２－０ | K11: １－１ | L11: １－１ | M11: ２－１ | N11: ０－２ | O11: ２－０ | P11: ０－２
A12: 5 | B12: 観音寺第一A | C12: ○ | D12: ○ | E12: × | F12: × | H12: × | I12: × | J12: ○ | K12: △ | L12: ○ | M12: × | N12: × | O12: × | P12: × | Q12: =V12&" - "&W12&" - "&X12 -> 4 - 8 - 1 | R12: =Y12 -> 22 | S12: =ROUND(AA12,2) -> 1.69 | T12: =RANK(AA12,AA$4:AA$31) -> 9 | V12: =COUNTIF(C12:P12,"○") -> 4 | W12: =COUNTIF(C12:P12,"×") -> 8 | X12: =COUNTIF(C12:P12,"△") -> 1 | Y12: =V12*3+W12*1+X12*2 -> 22 | Z12: =SUM(V12:X13) -> 13 | AA12: =Y12/Z12 -> 1.692307692
C13: ２－１ | D13: ２－０ | E13: １－２ | F13: ０－２ | H13: １－２ | I13: ０－２ | J13: ２－１ | K13: １－１ | L13: ２－０ | M13: ０－２ | N13: ０－２ | O13: ０－２ | P13: ０－２
A14: 6 | B14: 松山北C | C14: ○ | D14: ○ | E14: ○ | F14: × | G14: ○ | I14: △ | J14: ○ | K14: ○ | L14: ○ | M14: ○ | N14: × | O14: × | P14: × | Q14: =V14&" - "&W14&" - "&X14 -> 8 - 4 - 1 | R14: =Y14 -> 30 | S14: =ROUND(AA14,2) -> 2.31 | T14: 5 | V14: =COUNTIF(C14:P14,"○") -> 8 | W14: =COUNTIF(C14:P14,"×") -> 4 | X14: =COUNTIF(C14:P14,"△") -> 1 | Y14: =V14*3+W14*1+X14*2 -> 30 | Z14: =SUM(V14:X15) -> 13 | AA14: =Y14/Z14 -> 2.307692308
C15: ２－１ | D15: ２－０ | E15: ２－０ | F15: １－２ | G15: ２－１ | I15: １－１ | J15: ２－０ | K15: ２－０ | L15: ２－０ | M15: ２－０ | N15: １－２ | O15: １－２ | P15: ０－２
A16: 7 | B16: 新居浜東B | C16: ○ | D16: ○ | E16: ○ | F16: × | G16: ○ | H16: △ | J16: × | L16: ○ | M16: ○ | N16: × | O16: ○ | P16: × | Q16: =V16&" - "&W16&" - "&X16 -> 7 - 4 - 1 | R16: =Y16 -> 27 | S16: =ROUND(AA16,2) -> 2.25 | T16: =RANK(AA16,AA$4:AA$31) -> 6 | V16: =COUNTIF(C16:P16,"○") -> 7 | W16: =COUNTIF(C16:P16,"×") -> 4 | X16: =COUNTIF(C16:P16,"△") -> 1 | Y16: =V16*3+W16*1+X16*2 -> 27 | Z16: =SUM(V16:X17) -> 12 | AA16: =Y16/Z16 -> 2.25
C17: ２－０ | D17: ２－０ | E17: ２－０ | F17: ０－２ | G17: ２－０ | H17: １－１ | J17: ０－２ | L17: ２－０ | M17: ２－１ | N17: ０－２ | O17: ２－０ | P17: ０－２
A18: 8 | B18: 伊予農業C | C18: ○ | D18: × | E18: △ | F18: × | G18: × | H18: × | I18: ○ | K18: △ | L18: × | M18: △ | N18: × | O18: × | Q18: =V18&" - "&W18&" - "&X18 -> 2 - 7 - 3 | R18: =Y18 -> 19 | S18: =ROUND(AA18,2) -> 1.58 | T18: =RANK(AA18,AA$4:AA$31) -> 12 | V18: =COUNTIF(C18:P18,"○") -> 2 | W18: =COUNTIF(C18:P18,"×") -> 7 | X18: =COUNTIF(C18:P18,"△") -> 3 | Y18: =V18*3+W18*1+X18*2 -> 19 | Z18: =SUM(V18:X19) -> 12 | AA18: =Y18/Z18 -> 1.583333333
C19: ２－１ | D19: ０－２ | E19: １－１ | F19: ０－２ | G19: １－２ | H19: ０－２ | I19: ２－０ | K19: １－１ | L19: ０－２ | M19: １－１ | N19: ０－２ | O19: １－２
A20: 9 | B20: 新居浜東C | C20: ○ | D20: × | E20: × | F20: △ | G20: △ | H20: × | J20: △ | L20: △ | M20: △ | N20: × | O20: △ | P20: × | Q20: =V20&" - "&W20&" - "&X20 -> 1 - 5 - 6 | R20: =Y20 -> 20 | S20: =ROUND(AA20,2) -> 1.67 | T20: =RANK(AA20,AA$4:AA$31) -> 10 | V20: =COUNTIF(C20:P20,"○") -> 1 | W20: =COUNTIF(C20:P20,"×") -> 5 | X20: =COUNTIF(C20:P20,"△") -> 6 | Y20: =V20*3+W20*1+X20*2 -> 20 | Z20: =SUM(V20:X21) -> 12 | AA20: =Y20/Z20 -> 1.666666667
C21: ２－０ | D21: １－２ | E21: ０－２ | F21: １－１ | G21: １－１ | H21: ０－２ | J21: １－１ | L21: １－１ | M21: １－１ | N21: ０－２ | O21: １－１ | P21: ０－２
A22: 10 | B22: 松山商D | C22: ○ | D22: ○ | E22: ○ | F22: △ | G22: × | H22: × | I22: × | J22: ○ | K22: △ | M22: × | N22: × | O22: × | P22: × | Q22: =V22&" - "&W22&" - "&X22 -> 4 - 7 - 2 | R22: =Y22 -> 23 | S22: =ROUND(AA22,2) -> 1.77 | T22: =RANK(AA22,AA$4:AA$31) -> 7 | V22: =COUNTIF(C22:P22,"○") -> 4 | W22: =COUNTIF(C22:P22,"×") -> 7 | X22: =COUNTIF(C22:P22,"△") -> 2 | Y22: =V22*3+W22*1+X22*2 -> 23 | Z22: =SUM(V22:X23) -> 13 | AA22: =Y22/Z22 -> 1.769230769
C23: ２－０ | D23: ２－１ | E23: ２－０ | F23: １－１ | G23: ０－２ | H23: ０－２ | I23: ０－２ | J23: ２－０ | K23: １－１ | M23: ０－２ | N23: １－２ | O23: ０－２ | P23: ０－２
A24: 11 | B24: 新田B | C24: × | D24: × | E24: ○ | F24: × | G24: ○ | H24: × | I24: × | J24: △ | K24: △ | L24: ○ | N24: × | O24: × | P24: × | Q24: =V24&" - "&W24&" - "&X24 -> 3 - 8 - 2 | R24: =Y24 -> 21 | S24: =ROUND(AA24,2) -> 1.62 | T24: =RANK(AA24,AA$4:AA$31) -> 11 | V24: =COUNTIF(C24:P24,"○") -> 3 | W24: =COUNTIF(C24:P24,"×") -> 8 | X24: =COUNTIF(C24:P24,"△") -> 2 | Y24: =V24*3+W24*1+X24*2 -> 21 | Z24: =SUM(V24:X25) -> 13 | AA24: =Y24/Z24 -> 1.615384615
C25: ０－２ | D25: ０－２ | E25: ２－１ | F25: １－２ | G25: ２－０ | H25: ０－２ | I25: １－２ | J25: １－１ | K25: １－１ | L25: ２－０ | N25: ０－２ | O25: １－２ | P25: １－２
A26: 12 | B26: 松山東A | C26: ○ | D26: ○ | E26: ○ | F26: ○ | G26: ○ | H26: ○ | I26: ○ | J26: ○ | K26: ○ | L26: ○ | M26: ○ | O26: ○ | P26: × | Q26: =V26&" - "&W26&" - "&X26 -> 12 - 1 - 0 | R26: =Y26 -> 37 | S26: =ROUND(AA26,2) -> 2.85 | T26: =RANK(AA26,AA$4:AA$31) -> 2 | V26: =COUNTIF(C26:P26,"○") -> 12 | W26: =COUNTIF(C26:P26,"×") -> 1 | X26: =COUNTIF(C26:P26,"△") -> 0 | Y26: =V26*3+W26*1+X26*2 -> 37 | Z26: =SUM(V26:X27) -> 13 | AA26: =Y26/Z26 -> 2.846153846
C27: ２－０ | D27: ２－０ | E27: ２－０ | F27: ２－０ | G27: ２－０ | H27: ２－１ | I27: ２－０ | J27: ２－０ | K27: ２－０ | L27: ２－１ | M27: ２－０ | O27: ２－０ | P27: ０－２
A28: 13 | B28: 宇和島東B | C28: ○ | D28: ○ | E28: ○ | F28: × | G28: ○ | H28: ○ | I28: × | J28: ○ | K28: △ | L28: ○ | M28: ○ | N28: × | P28: × | Q28: =V28&" - "&W28&" - "&X28 -> 8 - 4 - 1 | R28: =Y28 -> 30 | S28: =ROUND(AA28,2) -> 2.31 | T28: =RANK(AA28,AA$4:AA$31) -> 4 | V28: =COUNTIF(C28:P28,"○") -> 8 | W28: =COUNTIF(C28:P28,"×") -> 4 | X28: =COUNTIF(C28:P28,"△") -> 1 | Y28: =V28*3+W28*1+X28*2 -> 30 | Z28: =SUM(V28:X29) -> 13 | AA28: =Y28/Z28 -> 2.307692308
C29: ２－０ | D29: ２－０ | E29: ２－１ | F29: ０－２ | G29: ２－０ | H29: ２－１ | I29: ０－２ | J29: ２－１ | K29: １－１ | L29: ２－０ | M29: ２－１ | N29: ０－２ | P29: ０－２
A30: 14 | B30: 伊予農業A | C30: ○ | D30: ○ | E30: ○ | F30: ○ | G30: ○ | H30: ○ | I30: ○ | K30: ○ | L30: ○ | M30: ○ | N30: ○ | O30: ○ | Q30: =V30&" - "&W30&" - "&X30 -> 12 - 0 - 0 | R30: =Y30 -> 36 | S30: =ROUND(AA30,2) -> 3 | T30: =RANK(AA30,AA$4:AA$31) -> 1 | V30: =COUNTIF(C30:P30,"○") -> 12 | W30: =COUNTIF(C30:P30,"×") -> 0 | X30: =COUNTIF(C30:P30,"△") -> 0 | Y30: =V30*3+W30*1+X30*2 -> 36 | Z30: =SUM(V30:X31) -> 12 | AA30: =Y30/Z30 -> 3
C31: ２－０ | D31: ２－０ | E31: ２－０ | F31: ２－０ | G31: ２－０ | H31: ２－０ | I31: ２－０ | K31: ２－０ | L31: ２－０ | M31: ２－０ | N31: ２－０ | O31: ２－０
C33: ※ | D33: ポイントは「勝→３点、分→２点、負→１点、棄権→０点」で計算。得点率は「ポイント÷試合数」で計算。
C34: ※ | D34: 松山北Cと宇和島東B、今治西Bと松山商Dは同率のため、直接対決の結果で順位を決定。

Sheet 男子一般(予選B)
A1: 男子一般リーグB １５～２１コート
C3: =B4 -> 高松工芸B | D3: =B6 -> 高松工芸D | E3: =B8 -> 高松商C | F3: =B10 -> 観音寺第一B | G3: =B12 -> 松山商Ｃ | H3: =B14 -> 松山北D | I3: =B16 -> 新田A | J3: =B18 -> 宇和島東C | K3: =B20 -> 新田C | L3: =B22 -> 富岡西 | M3: =B24 -> 新居浜東Ａ | N3: =B26 -> 松山東B | O3: =B28 -> 伊予農業B | P3: =B30 -> 宇和島東A | Q3: 勝敗 | R3: ポイント | S3: 得点率 | T3: 順位 | V3: 勝 | W3: 負 | X3: 分 | Y3: ポイント | Z3: 試合数 | AA3: 勝率
A4: 1 | B4: 高松工芸B | E4: × | F4: ○ | G4: △ | H4: × | I4: × | J4: ○ | K4: × | L4: △ | M4: × | N4: × | O4: × | P4: × | Q4: =V4&" - "&W4&" - "&X4 -> 2 - 8 - 2 | R4: =Y4 -> 18 | S4: =ROUND(AA4,2) -> 1.5 | T4: 13 | V4: =COUNTIF(C4:P4,"○") -> 2 | W4: =COUNTIF(C4:P4,"×") -> 8 | X4: =COUNTIF(C4:P4,"△") -> 2 | Y4: =V4*3+W4*1+X4*2 -> 18 | Z4: =SUM(V4:X5) -> 12 | AA4: =Y4/Z4 -> 1.5
E5: ０－２ | F5: ２－１ | G5: １－１ | H5: ０－２ | I5: ０－２ | J5: ２－０ | K5: ０－２ | L5: １－１ | M5: ０－２ | N5: ０－２ | O5: ０－２ | P5: ０－２
A6: 2 | B6: 高松工芸D | E6: × | F6: × | G6: × | H6: ○ | I6: × | J6: ○ | K6: ○ | L6: × | M6: × | N6: × | O6: × | P6: × | Q6: =V6&" - "&W6&" - "&X6 -> 3 - 9 - 0 | R6: =Y6 -> 18 | S6: =ROUND(AA6,2) -> 1.5 | T6: =RANK(AA6,AA$4:AA$31) -> 12 | V6: =COUNTIF(C6:P6,"○") -> 3 | W6: =COUNTIF(C6:P6,"×") -> 9 | X6: =COUNTIF(C6:P6,"△") -> 0 | Y6: =V6*3+W6*1+X6*2 -> 18 | Z6: =SUM(V6:X7) -> 12 | AA6: =Y6/Z6 -> 1.5
E7: １－２ | F7: ０－２ | G7: ０－２ | H7: ２－１ | I7: ０－２ | J7: ２－１ | K7: ２－１ | L7: ０－２ | M7: ０－２ | N7: ０－２ | O7: ０－２ | P7: ０－２
A8: 3 | B8: 高松商C | C8: ○ | D8: ○ | F8: ○ | G8: ○ | H8: ○ | I8: × | J8: ○ | K8: ○ | L8: ○ | M8: × | N8: △ | O8: ○ | P8: ○ | Q8: =V8&" - "&W8&" - "&X8 -> 10 - 2 - 1 | R8: =Y8 -> 34 | S8: =ROUND(AA8,2) -> 2.62 | T8: =RANK(AA8,AA$4:AA$31) -> 3 | V8: =COUNTIF(C8:P8,"○") -> 10 | W8: =COUNTIF(C8:P8,"×") -> 2 | X8: =COUNTIF(C8:P8,"△") -> 1 | Y8: =V8*3+W8*1+X8*2 -> 34 | Z8: =SUM(V8:X9) -> 13 | AA8: =Y8/Z8 -> 2.615384615
C9: ２－０ | D9: ２－１ | F9: ２－１ | G9: ２－０ | H9: ２－０ | I9: ０－２ | J9: ２－０ | K9: ２－０ | L9: ２－１ | M9: １－２ | N9: １－１ | O9: ２－１ | P9: ２－１
A10: 4 | B10: 観音寺第一B | C10: × | D10: ○ | E10: × | G10: ○ | H10: ○ | I10: × | J10: ○ | K10: × | L10: × | M10: × | N10: ○ | O10: △ | P10: × | Q10: =V10&" - "&W10&" - "&X10 -> 5 - 7 - 1 | R10: =Y10 -> 24 | S10: =ROUND(AA10,2) -> 1.85 | T10: =RANK(AA10,AA$4:AA$31) -> 6 | V10: =COUNTIF(C10:P10,"○") -> 5 | W10: =COUNTIF(C10:P10,"×") -> 7 | X10: =COUNTIF(C10:P10,"△") -> 1 | Y10: =V10*3+W10*1+X10*2 -> 24 | Z10: =SUM(V10:X11) -> 13 | AA10: =Y10/Z10 -> 1.846153846
C11: １－２ | D11: ２－０ | E11: １－２ | G11: ２－０ | H11: ２－１ | I11: ０－２ | J11: ２－０ | K11: １－２ | L11: １－２ | M11: ０－２ | N11: ２－１ | O11: １－１ | P11: ０－２
A12: 5 | B12: 松山商Ｃ | C12: △ | D12: ○ | E12: × | F12: × | H12: ○ | I12: × | J12: × | K12: × | L12: ○ | M12: × | N12: × | O12: × | P12: × | Q12: =V12&" - "&W12&" - "&X12 -> 3 - 9 - 1 | R12: =Y12 -> 20 | S12: =ROUND(AA12,2) -> 1.54 | T12: =RANK(AA12,AA$4:AA$31) -> 11 | V12: =COUNTIF(C12:P12,"○") -> 3 | W12: =COUNTIF(C12:P12,"×") -> 9 | X12: =COUNTIF(C12:P12,"△") -> 1 | Y12: =V12*3+W12*1+X12*2 -> 20 | Z12: =SUM(V12:X13) -> 13 | AA12: =Y12/Z12 -> 1.538461538
C13: １－１ | D13: ２－０ | E13: ０－２ | F13: ０－２ | H13: ２－０ | I13: ０－２ | J13: ０－２ | K13: １－２ | L13: ２－１ | M13: ０－２ | N13: ０－２ | O13: ０－２ | P13: ０－２
A14: 6 | B14: 松山北D | C14: ○ | D14: × | E14: × | F14: × | G14: × | I14: × | J14: ○ | K14: ○ | L14: × | M14: × | N14: ○ | O14: ○ | P14: × | Q14: =V14&" - "&W14&" - "&X14 -> 5 - 8 - 0 | R14: =Y14 -> 23 | S14: =ROUND(AA14,2) -> 1.77 | T14: 9 | V14: =COUNTIF(C14:P14,"○") -> 5 | W14: =COUNTIF(C14:P14,"×") -> 8 | X14: =COUNTIF(C14:P14,"△") -> 0 | Y14: =V14*3+W14*1+X14*2 -> 23 | Z14: =SUM(V14:X15) -> 13 | AA14: =Y14/Z14 -> 1.769230769
C15: ２－０ | D15: １－２ | E15: ０－２ | F15: １－２ | G15: ０－２ | I15: ０－２ | J15: ２－０ | K15: ２－０ | L15: ０－２ | M15: ０－２ | N15: ２－０ | O15: ２－１ | P15: ０－２
A16: 7 | B16: 新田A | C16: ○ | D16: ○ | E16: ○ | F16: ○ | G16: ○ | H16: ○ | J16: ○ | L16: ○ | M16: × | N16: ○ | O16: ○ | P16: ○ | Q16: 11 - 1 - 0 | R16: =Y16 -> 34 | S16: =ROUND(AA16,2) -> 2.83 | T16: =RANK(AA16,AA$4:AA$31) -> 2 | V16: =COUNTIF(C16:P16,"○") -> 11 | W16: =COUNTIF(C16:P16,"×") -> 1 | X16: =COUNTIF(C16:P16,"△") -> 0 | Y16: =V16*3+W16*1+X16*2 -> 34 | Z16: =SUM(V16:X17) -> 12 | AA16: =Y16/Z16 -> 2.833333333
C17: ２－０ | D17: ２－０ | E17: ２－０ | F17: ２－０ | G17: ２－０ | H17: ２－０ | J17: ２－０ | L17: ２－０ | M17: １－２ | N17: ２－０ | O17: ２－１ | P17: ２－１
A18: 8 | B18: 宇和島東C | C18: × | D18: × | E18: × | F18: × | G18: ○ | H18: × | I18: × | K18: × | L18: △ | M18: × | N18: × | O18: ○ | Q18: =V18&" - "&W18&" - "&X18 -> 2 - 9 - 1 | R18: =Y18 -> 17 | S18: =ROUND(AA18,2) -> 1.42 | T18: =RANK(AA18,AA$4:AA$31) -> 14 | V18: =COUNTIF(C18:P18,"○") -> 2 | W18: =COUNTIF(C18:P18,"×") -> 9 | X18: =COUNTIF(C18:P18,"△") -> 1 | Y18: =V18*3+W18*1+X18*2 -> 17 | Z18: =SUM(V18:X19) -> 12 | AA18: =Y18/Z18 -> 1.416666667
C19: ０－２ | D19: １－２ | E19: ０－２ | F19: ０－２ | G19: ２－０ | H19: ０－２ | I19: ０－２ | K19: ０－２ | L19: １－１ | M19: ０－２ | N19: ０－２ | O19: ２－０
A20: 9 | B20: 新田C | C20: ○ | D20: × | E20: × | F20: ○ | G20: ○ | H20: × | J20: ○ | L20: ○ | M20: × | N20: × | O20: × | P20: × | Q20: =V20&" - "&W20&" - "&X20 -> 5 - 7 - 0 | R20: =Y20 -> 22 | S20: =ROUND(AA20,2) -> 1.83 | T20: =RANK(AA20,AA$4:AA$31) -> 7 | V20: =COUNTIF(C20:P20,"○") -> 5 | W20: =COUNTIF(C20:P20,"×") -> 7 | X20: =COUNTIF(C20:P20,"△") -> 0 | Y20: =V20*3+W20*1+X20*2 -> 22 | Z20: =SUM(V20:X21) -> 12 | AA20: =Y20/Z20 -> 1.833333333
C21: ２－０ | D21: １－２ | E21: ０－２ | F21: ２－１ | G21: ２－１ | H21: ０－２ | J21: ２－０ | L21: ２－０ | M21: ０－２ | N21: ０－２ | O21: １－２ | P21: ０－２
A22: 10 | B22: 富岡西 | C22: △ | D22: ○ | E22: × | F22: ○ | G22: × | H22: ○ | I22: × | J22: △ | K22: × | M22: × | N22: × | O22: ○ | P22: × | Q22: =V22&" - "&W22&" - "&X22 -> 4 - 7 - 2 | R22: =Y22 -> 23 | S22: =ROUND(AA22,2) -> 1.77 | T22: =RANK(AA22,AA$4:AA$31) -> 8 | V22: =COUNTIF(C22:P22,"○") -> 4 | W22: =COUNTIF(C22:P22,"×") -> 7 | X22: =COUNTIF(C22:P22,"△") -> 2 | Y22: =V22*3+W22*1+X22*2 -> 23 | Z22: =SUM(V22:X23) -> 13 | AA22: =Y22/Z22 -> 1.769230769
C23: １－１ | D23: ２－０ | E23: １－２ | F23: ２－１ | G23: １－２ | H23: ２－０ | I23: ０－２ | J23: １－１ | K23: ０－２ | M23: ０－２ | N23: ０－２ | O23: ２－０ | P23: １－２
A24: 11 | B24: 新居浜東Ａ | C24: ○ | D24: ○ | E24: ○ | F24: ○ | G24: ○ | H24: ○ | I24: ○ | J24: ○ | K24: ○ | L24: ○ | N24: ○ | O24: ○ | P24: ○ | Q24: =V24&" - "&W24&" - "&X24 -> 13 - 0 - 0 | R24: =Y24 -> 39 | S24: =ROUND(AA24,2) -> 3 | T24: =RANK(AA24,AA$4:AA$31) -> 1 | V24: =COUNTIF(C24:P24,"○") -> 13 | W24: =COUNTIF(C24:P24,"×") -> 0 | X24: =COUNTIF(C24:P24,"△") -> 0 | Y24: =V24*3+W24*1+X24*2 -> 39 | Z24: =SUM(V24:X25) -> 13 | AA24: =Y24/Z24 -> 3
C25: ２－０ | D25: ２－０ | E25: ２－１ | F25: ２－０ | G25: ２－０ | H25: ２－０ | I25: ２－１ | J25: ２－０ | K25: ２－０ | L25: ２－０ | N25: ２－０ | O25: ２－０ | P25: ２－０
A26: 12 | B26: 松山東B | C26: ○ | D26: ○ | E26: △ | F26: × | G26: ○ | H26: × | I26: × | J26: ○ | K26: ○ | L26: ○ | M26: × | O26: △ | P26: × | Q26: =V26&" - "&W26&" - "&X26 -> 6 - 5 - 2 | R26: =Y26 -> 27 | S26: =ROUND(AA26,2) -> 2.08 | T26: =RANK(AA26,AA$4:AA$31) -> 5 | V26: =COUNTIF(C26:P26,"○") -> 6 | W26: =COUNTIF(C26:P26,"×") -> 5 | X26: =COUNTIF(C26:P26,"△") -> 2 | Y26: =V26*3+W26*1+X26*2 -> 27 | Z26: =SUM(V26:X27) -> 13 | AA26: =Y26/Z26 -> 2.076923077
C27: ２－０ | D27: ２－０ | E27: １－１ | F27: １－２ | G27: ２－０ | H27: ０－２ | I27: ０－２ | J27: ２－０ | K27: ２－０ | L27: ２－０ | M27: ０－２ | O27: １－１ | P27: ０－２
A28: 13 | B28: 伊予農業B | C28: ○ | D28: ○ | E28: × | F28: △ | G28: ○ | H28: × | I28: × | J28: × | K28: ○ | L28: × | M28: × | N28: △ | P28: × | Q28: =V28&" - "&W28&" - "&X28 -> 4 - 7 - 2 | R28: =Y28 -> 23 | S28: =ROUND(AA28,2) -> 1.77 | T28: 10 | V28: =COUNTIF(C28:P28,"○") -> 4 | W28: =COUNTIF(C28:P28,"×") -> 7 | X28: =COUNTIF(C28:P28,"△") -> 2 | Y28: =V28*3+W28*1+X28*2 -> 23 | Z28: =SUM(V28:X29) -> 13 | AA28: =Y28/Z28 -> 1.769230769
C29: ２－０ | D29: ２－０ | E29: １－２ | F29: １－１ | G29: ２－０ | H29: １－２ | I29: １－２ | J29: ０－２ | K29: ２－１ | L29: ０－２ | M29: ０－２ | N29: １－１ | P29: ０－２
A30: 14 | B30: 宇和島東A | C30: ○ | D30: ○ | E30: × | F30: ○ | G30: ○ | H30: ○ | I30: × | K30: ○ | L30: ○ | M30: × | N30: ○ | O30: ○ | Q30: =V30&" - "&W30&" - "&X30 -> 9 - 3 - 0 | R30: =Y30 -> 30 | S30: =ROUND(AA30,2) -> 2.5 | T30: =RANK(AA30,AA$4:AA$31) -> 4 | V30: =COUNTIF(C30:P30,"○") -> 9 | W30: =COUNTIF(C30:P30,"×") -> 3 | X30: =COUNTIF(C30:P30,"△") -> 0 | Y30: =V30*3+W30*1+X30*2 -> 30 | Z30: =SUM(V30:X31) -> 12 | AA30: =Y30/Z30 -> 2.5
C31: ２－０ | D31: ２－０ | E31: １－２ | F31: ２－０ | G31: ２－０ | H31: ２－０ | I31: １－２ | K31: ２－０ | L31: ２－１ | M31: １－２ | N31: ２－０ | O31: ２－０
C33: ※ | D33: ポイントは「勝→３点、分→２点、負→１点、棄権→０点」で計算。得点率は「ポイント÷試合数」で計算。
C34: ※ | D34: 松山北D、富岡西、伊予農業Bは３チームが同率のため、直接対決の結果で順位を決定。
C35: ※ | D35: 高松工芸Bと高松工芸Dは同率のため、勝ち数で順位を決定。

Sheet 男子一般(順位リーグ）
A1: 男子一般順位リーグ ７～２０コート
U2: ※ 予選の結果を持ち越す。
B3: 1，２位リーグ（７・８コート） | M3: ９，１０位リーグ（１５・１６コート）
C4: =B5 -> 伊予農業A | D4: =B7 -> 松山東A | E4: =B9 -> 新居浜東A | F4: =B11 -> 新田A | G4: 勝敗 | H4: ポイント | I4: 得点率 | J4: 順位 | N4: =M5 -> 観音寺第一A | O4: =M7 -> 新居浜東C | P4: =M9 -> 松山北D | Q4: =M11 -> 伊予農業B | R4: 勝敗 | S4: ポイント | T4: 得点率 | U4: 順位 | W4: 勝 | X4: 負 | Y4: 分 | Z4: ポイント | AA4: 試合数 | AB4: 勝率 | AD4: 勝 | AE4: 負 | AF4: 分 | AG4: ポイント | AH4: 試合数 | AI4: 勝率
A5: 1 | B5: 伊予農業A | D5: ○ | E5: △ | F5: △ | G5: =W5&" - "&X5&" - "&Y5 -> 1 - 0 - 2 | H5: =Z5 -> 7 | I5: =ROUND(AB5,2) -> 2.33 | J5: =RANK(AB5,AB$5:AB$11) -> 1 | L5: 1 | M5: 観音寺第一A | O5: △ | P5: × | Q5: × | R5: =AD5&" - "&AE5&" - "&AF5 -> 0 - 2 - 1 | S5: =AG5 -> 4 | T5: =ROUND(AI5,2) -> 1.33 | U5: =RANK(AI5,AI$5:AI$11) -> 4 | W5: =COUNTIF(C5:F5,"○") -> 1 | X5: =COUNTIF(C5:F5,"×") -> 0 | Y5: =COUNTIF(C5:F5,"△") -> 2 | Z5: =W5*3+X5*1+Y5*2 -> 7 | AA5: =SUM(W5:Y6) -> 3 | AB5: =Z5/AA5 -> 2.333333333 | AD5: =COUNTIF(N5:Q5,"○") -> 0 | AE5: =COUNTIF(N5:Q5,"×") -> 2 | AF5: =COUNTIF(N5:Q5,"△") -> 1 | AG5: =AD5*3+AE5*1+AF5*2 -> 4 | AH5: =SUM(AD5:AF6) -> 3 | AI5: =AG5/AH5 -> 1.333333333
D6: ２－０ | E6: １－１ | F6: １－１ | O6: １－１ | P6: ０－２ | Q6: ０－２
A7: 2 | B7: 松山東A | C7: × | E7: △ | F7: × | G7: =W7&" - "&X7&" - "&Y7 -> 0 - 2 - 1 | H7: =Z7 -> 4 | I7: =ROUND(AB7,2) -> 1.33 | J7: =RANK(AB7,AB$5:AB$11) -> 4 | L7: 2 | M7: 新居浜東C | N7: △ | P7: ○ | Q7: △ | R7: =AD7&" - "&AE7&" - "&AF7 -> 1 - 0 - 2 | S7: =AG7 -> 7 | T7: =ROUND(AI7,2) -> 2.33 | U7: =RANK(AI7,AI$5:AI$11) -> 1 | W7: =COUNTIF(C7:F7,"○") -> 0 | X7: =COUNTIF(C7:F7,"×") -> 2 | Y7: =COUNTIF(C7:F7,"△") -> 1 | Z7: =W7*3+X7*1+Y7*2 -> 4 | AA7: =SUM(W7:Y8) -> 3 | AB7: =Z7/AA7 -> 1.333333333 | AD7: =COUNTIF(N7:Q7,"○") -> 1 | AE7: =COUNTIF(N7:Q7,"×") -> 0 | AF7: =COUNTIF(N7:Q7,"△") -> 2 | AG7: =AD7*3+AE7*1+AF7*2 -> 7 | AH7: =SUM(AD7:AF8) -> 3 | AI7: =AG7/AH7 -> 2.333333333
C8: ０－２ | E8: １－１ | F8: １－２ | N8: １－１ | P8: ２－０ | Q8: １－１
A9: 3 | B9: 新居浜東A | C9: △ | D9: △ | F9: ○ | G9: =W9&" - "&X9&" - "&Y9 -> 1 - 0 - 2 | H9: =Z9 -> 7 | I9: =ROUND(AB9,2) -> 2.33 | J9: =RANK(AB9,AB$5:AB$11) -> 1 | L9: 3 | M9: 松山北D | N9: ○ | O9: × | Q9: ○ | R9: =AD9&" - "&AE9&" - "&AF9 -> 2 - 1 - 0 | S9: =AG9 -> 7 | T9: =ROUND(AI9,2) -> 2.33 | U9: 2 | W9: =COUNTIF(C9:F9,"○") -> 1 | X9: =COUNTIF(C9:F9,"×") -> 0 | Y9: =COUNTIF(C9:F9,"△") -> 2 | Z9: =W9*3+X9*1+Y9*2 -> 7 | AA9: =SUM(W9:Y10) -> 3 | AB9: =Z9/AA9 -> 2.333333333 | AD9: =COUNTIF(N9:Q9,"○") -> 2 | AE9: =COUNTIF(N9:Q9,"×") -> 1 | AF9: =COUNTIF(N9:Q9,"△") -> 0 | AG9: =AD9*3+AE9*1+AF9*2 -> 7 | AH9: =SUM(AD9:AF10) -> 3 | AI9: =AG9/AH9 -> 2.333333333
C10: １－１ | D10: １－１ | F10: ２－１ | N10: ２－０ | O10: ０－２ | Q10: ２－１
A11: 4 | B11: 新田A | C11: △ | D11: ○ | E11: × | G11: =W11&" - "&X11&" - "&Y11 -> 1 - 1 - 1 | H11: =Z11 -> 6 | I11: =ROUND(AB11,2) -> 2 | J11: =RANK(AB11,AB$5:AB$11) -> 3 | L11: 4 | M11: 伊予農業B | N11: ○ | O11: △ | P11: × | R11: =AD11&" - "&AE11&" - "&AF11 -> 1 - 1 - 1 | S11: =AG11 -> 6 | T11: =ROUND(AI11,2) -> 2 | U11: =RANK(AI11,AI$5:AI$11) -> 3 | W11: =COUNTIF(C11:F11,"○") -> 1 | X11: =COUNTIF(C11:F11,"×") -> 1 | Y11: =COUNTIF(C11:F11,"△") -> 1 | Z11: =W11*3+X11*1+Y11*2 -> 6 | AA11: =SUM(W11:Y12) -> 3 | AB11: =Z11/AA11 -> 2 | AD11: =COUNTIF(N11:Q11,"○") -> 1 | AE11: =COUNTIF(N11:Q11,"×") -> 1 | AF11: =COUNTIF(N11:Q11,"△") -> 1 | AG11: =AD11*3+AE11*1+AF11*2 -> 6 | AH11: =SUM(AD11:AF12) -> 3 | AI11: =AG11/AH11 -> 2
C12: １－１ | D12: ２－１ | E12: １－２ | N12: ２－０ | O12: １－１ | P12: １－２
B13: ※ | C13: 伊予農業Aと新居浜東Aは同率、勝ち数も同じで直接対決も引き分けのため、同順位。 | M13: ※ | N13: 新居浜東Cと松山北Dは同率のため、直接対決の結果で順位を決定。
B14: ３，４位リーグ（９・１０コート） | M14: １１，１２位リーグ（１７・１８コート）
C15: =B16 -> 高松商D | D15: =B18 -> 宇和島東B | E15: =B20 -> 高松商C | F15: =B22 -> 宇和島東A | G15: 勝敗 | H15: ポイント | I15: 得点率 | J15: 順位 | N15: =M16 -> 新田B | O15: =M18 -> 伊予農業C | P15: =M20 -> 松山商C | Q15: =M22 -> 高松工芸D | R15: 勝敗 | S15: ポイント | T15: 得点率 | U15: 順位 | W15: 勝 | X15: 負 | Y15: 分 | Z15: ポイント | AA15: 試合数 | AB15: 勝率 | AD15: 勝 | AE15: 負 | AF15: 分 | AG15: ポイント | AH15: 試合数 | AI15: 勝率
A16: 1 | B16: 高松商D | D16: ○ | F16: × | G16: =W16&" - "&X16&" - "&Y16 -> 1 - 1 - 0 | H16: =Z16 -> 4 | I16: =ROUND(AB16,2) -> 2 | J16: 3 | L16: 1 | M16: 新田B | O16: △ | P16: ○ | Q16: ○ | R16: =AD16&" - "&AE16&" - "&AF16 -> 2 - 0 - 1 | S16: =AG16 -> 8 | T16: =ROUND(AI16,2) -> 2.67 | U16: =RANK(AI16,AI$16:AI$22) -> 1 | W16: =COUNTIF(C16:F16,"○") -> 1 | X16: =COUNTIF(C16:F16,"×") -> 1 | Y16: =COUNTIF(C16:F16,"△") -> 0 | Z16: =W16*3+X16*1+Y16*2 -> 4 | AA16: =SUM(W16:Y17) -> 2 | AB16: =Z16/AA16 -> 2 | AD16: =COUNTIF(N16:Q16,"○") -> 2 | AE16: =COUNTIF(N16:Q16,"×") -> 0 | AF16: =COUNTIF(N16:Q16,"△") -> 1 | AG16: =AD16*3+AE16*1+AF16*2 -> 8 | AH16: =SUM(AD16:AF17) -> 3 | AI16: =AG16/AH16 -> 2.666666667
D17: ２－０ | F17: ０－２ | O17: １－１ | P17: ２－１ | Q17: ２－０
A18: 2 | B18: 宇和島東B | C18: × | E18: × | G18: =W18&" - "&X18&" - "&Y18 -> 0 - 2 - 0 | H18: =Z18 -> 2 | I18: =ROUND(AB18,2) -> 1 | J18: =RANK(AB18,AB$16:AB$22) -> 4 | L18: 2 | M18: 伊予農業C | N18: △ | P18: × | Q18: × | R18: =AD18&" - "&AE18&" - "&AF18 -> 0 - 2 - 1 | S18: =AG18 -> 4 | T18: =ROUND(AI18,2) -> 1.33 | U18: =RANK(AI18,AI$16:AI$22) -> 4 | W18: =COUNTIF(C18:F18,"○") -> 0 | X18: =COUNTIF(C18:F18,"×") -> 2 | Y18: =COUNTIF(C18:F18,"△") -> 0 | Z18: =W18*3+X18*1+Y18*2 -> 2 | AA18: =SUM(W18:Y19) -> 2 | AB18: =Z18/AA18 -> 1 | AD18: =COUNTIF(N18:Q18,"○") -> 0 | AE18: =COUNTIF(N18:Q18,"×") -> 2 | AF18: =COUNTIF(N18:Q18,"△") -> 1 | AG18: =AD18*3+AE18*1+AF18*2 -> 4 | AH18: =SUM(AD18:AF19) -> 3 | AI18: =AG18/AH18 -> 1.333333333
C19: ０－２ | E19: ０－２ | N19: １－１ | P19: ０－２ | Q19: ０－２
A20: 3 | B20: 高松商C | D20: ○ | F20: ○ | G20: =W20&" - "&X20&" - "&Y20 -> 2 - 0 - 0 | H20: =Z20 -> 6 | I20: =ROUND(AB20,2) -> 3 | J20: =RANK(AB20,AB$16:AB$22) -> 1 | L20: 3 | M20: 松山商C | N20: × | O20: ○ | Q20: ○ | R20: =AD20&" - "&AE20&" - "&AF20 -> 2 - 1 - 0 | S20: =AG20 -> 7 | T20: =ROUND(AI20,2) -> 2.33 | U20: =RANK(AI20,AI$16:AI$22) -> 2 | W20: =COUNTIF(C20:F20,"○") -> 2 | X20: =COUNTIF(C20:F20,"×") -> 0 | Y20: =COUNTIF(C20:F20,"△") -> 0 | Z20: =W20*3+X20*1+Y20*2 -> 6 | AA20: =SUM(W20:Y21) -> 2 | AB20: =Z20/AA20 -> 3 | AD20: =COUNTIF(N20:Q20,"○") -> 2 | AE20: =COUNTIF(N20:Q20,"×") -> 1 | AF20: =COUNTIF(N20:Q20,"△") -> 0 | AG20: =AD20*3+AE20*1+AF20*2 -> 7 | AH20: =SUM(AD20:AF21) -> 3 | AI20: =AG20/AH20 -> 2.333333333
D21: ２－０ | F21: ２－１ | N21: １－２ | O21: ２－０ | Q21: ２－０
A22: 4 | B22: 宇和島東A | C22: ○ | E22: × | G22: =W22&" - "&X22&" - "&Y22 -> 1 - 1 - 0 | H22: =Z22 -> 4 | I22: =ROUND(AB22,2) -> 2 | J22: =RANK(AB22,AB$16:AB$22) -> 2 | L22: 4 | M22: 高松工芸D | N22: × | O22: ○ | P22: × | R22: =AD22&" - "&AE22&" - "&AF22 -> 1 - 2 - 0 | S22: =AG22 -> 5 | T22: =ROUND(AI22,2) -> 1.67 | U22: =RANK(AI22,AI$16:AI$22) -> 3 | W22: =COUNTIF(C22:F22,"○") -> 1 | X22: =COUNTIF(C22:F22,"×") -> 1 | Y22: =COUNTIF(C22:F22,"△") -> 0 | Z22: =W22*3+X22*1+Y22*2 -> 4 | AA22: =SUM(W22:Y23) -> 2 | AB22: =Z22/AA22 -> 2 | AD22: =COUNTIF(N22:Q22,"○") -> 1 | AE22: =COUNTIF(N22:Q22,"×") -> 2 | AF22: =COUNTIF(N22:Q22,"△") -> 0 | AG22: =AD22*3+AE22*1+AF22*2 -> 5 | AH22: =SUM(AD22:AF23) -> 3 | AI22: =AG22/AH22 -> 1.666666667
C23: ２－０ | E23: １－２ | N23: ０－２ | O23: ２－０ | P23: ０－２
B24: ※ | C24: 高松商Dと宇和島東Aは同率のため、直接対決の結果で順位を決定。
B25: ５，６位リーグ（１１・１２コート） | M25: １３，１４位リーグ（１９・２０コート）
C26: =B27 -> 松山北C | D26: =B29 -> 新居浜東B | E26: =B31 -> 松山東B | F26: =B33 -> 観音寺第一B | G26: 勝敗 | H26: ポイント | I26: 得点率 | J26: 順位 | N26: =M27 -> 城南C | O26: =M29 -> 高松工芸C | P26: =M31 -> 高松工芸B | Q26: =M33 -> 宇和島東C | R26: 勝敗 | S26: ポイント | T26: 得点率 | U26: 順位 | W26: 勝 | X26: 負 | Y26: 分 | Z26: ポイント | AA26: 試合数 | AB26: 勝率 | AD26: 勝 | AE26: 負 | AF26: 分 | AG26: ポイント | AH26: 試合数 | AI26: 勝率
A27: 1 | B27: 松山北C | D27: △ | E27: △ | F27: × | G27: =W27&" - "&X27&" - "&Y27 -> 0 - 1 - 2 | H27: =Z27 -> 5 | I27: =ROUND(AB27,2) -> 1.67 | J27: =RANK(AB27,AB$27:AB$33) -> 3 | L27: 1 | M27: 城南C | O27: ○ | P27: ○ | Q27: △ | R27: =AD27&" - "&AE27&" - "&AF27 -> 2 - 0 - 1 | S27: =AG27 -> 8 | T27: =ROUND(AI27,2) -> 2.67 | U27: =RANK(AI27,AI$27:AI$33) -> 1 | W27: =COUNTIF(C27:F27,"○") -> 0 | X27: =COUNTIF(C27:F27,"×") -> 1 | Y27: =COUNTIF(C27:F27,"△") -> 2 | Z27: =W27*3+X27*1+Y27*2 -> 5 | AA27: =SUM(W27:Y28) -> 3 | AB27: =Z27/AA27 -> 1.666666667 | AD27: =COUNTIF(N27:Q27,"○") -> 2 | AE27: =COUNTIF(N27:Q27,"×") -> 0 | AF27: =COUNTIF(N27:Q27,"△") -> 1 | AG27: =AD27*3+AE27*1+AF27*2 -> 8 | AH27: =SUM(AD27:AF28) -> 3 | AI27: =AG27/AH27 -> 2.666666667
D28: １－１ | E28: １－１ | F28: ０－２ | O28: ２－０ | P28: ２－０ | Q28: １－１
A29: 2 | B29: 新居浜東B | C29: △ | E29: ○ | F29: × | G29: =W29&" - "&X29&" - "&Y29 -> 1 - 1 - 1 | H29: =Z29 -> 6 | I29: =ROUND(AB29,2) -> 2 | J29: =RANK(AB29,AB$27:AB$33) -> 2 | L29: 2 | M29: 高松工芸C | N29: × | Q29: × | R29: =AD29&" - "&AE29&" - "&AF29 -> 0 - 2 - 0 | S29: =AG29 -> 2 | T29: =ROUND(AI29,2) -> 1 | U29: =RANK(AI29,AI$27:AI$33) -> 4 | W29: =COUNTIF(C29:F29,"○") -> 1 | X29: =COUNTIF(C29:F29,"×") -> 1 | Y29: =COUNTIF(C29:F29,"△") -> 1 | Z29: =W29*3+X29*1+Y29*2 -> 6 | AA29: =SUM(W29:Y30) -> 3 | AB29: =Z29/AA29 -> 2 | AD29: =COUNTIF(N29:Q29,"○") -> 0 | AE29: =COUNTIF(N29:Q29,"×") -> 2 | AF29: =COUNTIF(N29:Q29,"△") -> 0 | AG29: =AD29*3+AE29*1+AF29*2 -> 2 | AH29: =SUM(AD29:AF30) -> 2 | AI29: =AG29/AH29 -> 1
C30: １－１ | E30: ２－０ | F30: ０－２ | N30: ０－２ | Q30: １－２
A31: 3 | B31: 松山東B | C31: △ | D31: × | F31: × | G31: =W31&" - "&X31&" - "&Y31 -> 0 - 2 - 1 | H31: =Z31 -> 4 | I31: =ROUND(AB31,2) -> 1.33 | J31: =RANK(AB31,AB$27:AB$33) -> 4 | L31: 3 | M31: 高松工芸B | N31: × | Q31: ○ | R31: =AD31&" - "&AE31&" - "&AF31 -> 1 - 1 - 0 | S31: =AG31 -> 4 | T31: =ROUND(AI31,2) -> 2 | U31: =RANK(AI31,AI$27:AI$33) -> 2 | W31: =COUNTIF(C31:F31,"○") -> 0 | X31: =COUNTIF(C31:F31,"×") -> 2 | Y31: =COUNTIF(C31:F31,"△") -> 1 | Z31: =W31*3+X31*1+Y31*2 -> 4 | AA31: =SUM(W31:Y32) -> 3 | AB31: =Z31/AA31 -> 1.333333333 | AD31: =COUNTIF(N31:Q31,"○") -> 1 | AE31: =COUNTIF(N31:Q31,"×") -> 1 | AF31: =COUNTIF(N31:Q31,"△") -> 0 | AG31: =AD31*3+AE31*1+AF31*2 -> 4 | AH31: =SUM(AD31:AF32) -> 2 | AI31: =AG31/AH31 -> 2
C32: １－１ | D32: ０－２ | F32: １－２ | N32: ０－２ | Q32: ２－０
A33: 4 | B33: 観音寺第一B | C33: ○ | D33: ○ | E33: ○ | G33: =W33&" - "&X33&" - "&Y33 -> 3 - 0 - 0 | H33: =Z33 -> 9 | I33: =ROUND(AB33,2) -> 3 | J33: =RANK(AB33,AB$27:AB$33) -> 1 | L33: 4 | M33: 宇和島東C | N33: △ | O33: ○ | P33: × | R33: =AD33&" - "&AE33&" - "&AF33 -> 1 - 1 - 1 | S33: =AG33 -> 6 | T33: =ROUND(AI33,2) -> 2 | U33: 3 | W33: =COUNTIF(C33:F33,"○") -> 3 | X33: =COUNTIF(C33:F33,"×") -> 0 | Y33: =COUNTIF(C33:F33,"△") -> 0 | Z33: =W33*3+X33*1+Y33*2 -> 9 | AA33: =SUM(W33:Y34) -> 3 | AB33: =Z33/AA33 -> 3 | AD33: =COUNTIF(N33:Q33,"○") -> 1 | AE33: =COUNTIF(N33:Q33,"×") -> 1 | AF33: =COUNTIF(N33:Q33,"△") -> 1 | AG33: =AD33*3+AE33*1+AF33*2 -> 6 | AH33: =SUM(AD33:AF34) -> 3 | AI33: =AG33/AH33 -> 2
C34: ２－０ | D34: ２－０ | E34: ２－１ | N34: １－１ | O34: ２－１ | P34: ０－２
M35: ※ | N35: 高松工芸Bと宇和島東Cは同率のため、直接対決の結果で順位を決定。
B36: ７，８位リーグ（１３・１４コート）
C37: =B38 -> 松山商D | D37: =B40 -> 今治西B | E37: =B42 -> 新田C | F37: =B44 -> 富岡西 | G37: 勝敗 | H37: ポイント | I37: 得点率 | J37: 順位 | M37: ※ | N37: ポイントは「勝→３点、分→２点、負→１点、棄権→０点」で計算。 得点率は「ポイント÷試合数」で計算。 | W37: 勝 | X37: 負 | Y37: 分 | Z37: ポイント | AA37: 試合数 | AB37: 勝率
A38: 1 | B38: 松山商D | D38: ○ | E38: × | F38: × | G38: =W38&" - "&X38&" - "&Y38 -> 1 - 2 - 0 | H38: =Z38 -> 5 | I38: =ROUND(AB38,2) -> 1.67 | J38: =RANK(AB38,AB$38:AB$44) -> 3 | W38: =COUNTIF(C38:F38,"○") -> 1 | X38: =COUNTIF(C38:F38,"×") -> 2 | Y38: =COUNTIF(C38:F38,"△") -> 0 | Z38: =W38*3+X38*1+Y38*2 -> 5 | AA38: =SUM(W38:Y39) -> 3 | AB38: =Z38/AA38 -> 1.666666667
D39: ２－１ | E39: ０－２ | F39: １－２
A40: 2 | B40: 今治西B | C40: × | E40: × | F40: △ | G40: =W40&" - "&X40&" - "&Y40 -> 0 - 2 - 1 | H40: =Z40 -> 4 | I40: =ROUND(AB40,2) -> 1.33 | J40: =RANK(AB40,AB$38:AB$44) -> 4 | W40: =COUNTIF(C40:F40,"○") -> 0 | X40: =COUNTIF(C40:F40,"×") -> 2 | Y40: =COUNTIF(C40:F40,"△") -> 1 | Z40: =W40*3+X40*1+Y40*2 -> 4 | AA40: =SUM(W40:Y41) -> 3 | AB40: =Z40/AA40 -> 1.333333333
C41: １－２ | E41: ０－２ | F41: １－１
A42: 3 | B42: 新田C | C42: ○ | D42: ○ | F42: ○ | G42: =W42&" - "&X42&" - "&Y42 -> 3 - 0 - 0 | H42: =Z42 -> 9 | I42: =ROUND(AB42,2) -> 3 | J42: =RANK(AB42,AB$38:AB$44) -> 1 | W42: =COUNTIF(C42:F42,"○") -> 3 | X42: =COUNTIF(C42:F42,"×") -> 0 | Y42: =COUNTIF(C42:F42,"△") -> 0 | Z42: =W42*3+X42*1+Y42*2 -> 9 | AA42: =SUM(W42:Y43) -> 3 | AB42: =Z42/AA42 -> 3
C43: ２－０ | D43: ２－０ | F43: ２－０
A44: 4 | B44: 富岡西 | C44: ○ | D44: △ | E44: × | G44: =W44&" - "&X44&" - "&Y44 -> 1 - 1 - 1 | H44: =Z44 -> 6 | I44: =ROUND(AB44,2) -> 2 | J44: =RANK(AB44,AB$38:AB$44) -> 2 | W44: =COUNTIF(C44:F44,"○") -> 1 | X44: =COUNTIF(C44:F44,"×") -> 1 | Y44: =COUNTIF(C44:F44,"△") -> 1 | Z44: =W44*3+X44*1+Y44*2 -> 6 | AA44: =SUM(W44:Y45) -> 3 | AB44: =Z44/AA44 -> 2
C45: ２－１ | D45: １－１ | E45: ０－２

Sheet 女子スーパー(予選A)
A1: 女子スーパーリーグA ２２～２６コート
C3: =B4 -> 高知工科大A | D3: =B6 -> 和歌山商A | E3: =B8 -> 長崎女子商A | F3: =B10 -> 城南B | G3: =B12 -> 鹿児島女子B | H3: =B14 -> 高松商B | I3: =B16 -> 近大福山A | J3: =B18 -> 済美B | K3: =B20 -> 宇和島東B | L3: =B22 -> 今治北A | M3: 勝敗 | N3: ポイント | O3: 得点率 | P3: 順位 | R3: 勝 | S3: 負 | T3: 分 | U3: ポイント | V3: 試合数 | W3: 勝率
A4: 1 | B4: 高知工科大A | D4: ○ | E4: ○ | F4: ○ | G4: △ | H4: ○ | I4: × | J4: △ | K4: ○ | L4: ○ | M4: =R4&" - "&S4&" - "&T4 -> 6 - 1 - 2 | N4: =U4 -> 23 | O4: =ROUND(W4,2) -> 2.56 | P4: =RANK(W4,W$4:W$23) -> 3 | R4: =COUNTIF(C4:L4,"○") -> 6 | S4: =COUNTIF(C4:L4,"×") -> 1 | T4: =COUNTIF(C4:L4,"△") -> 2 | U4: =R4*3+S4*1+T4*2 -> 23 | V4: =SUM(R4:T5) -> 9 | W4: =U4/V4 -> 2.555555556
D5: ２－０ | E5: ２－１ | F5: ２－０ | G5: １－１ | H5: ２－０ | I5: ０－１ | J5: １－１ | K5: ２－０ | L5: ２－０
A6: 2 | B6: 和歌山商A | C6: × | E6: ○ | F6: ○ | G6: △ | H6: △ | I6: × | J6: △ | K6: ○ | L6: △ | M6: =R6&" - "&S6&" - "&T6 -> 3 - 2 - 4 | N6: =U6 -> 19 | O6: =ROUND(W6,2) -> 2.11 | P6: =RANK(W6,W$4:W$23) -> 4 | R6: =COUNTIF(C6:L6,"○") -> 3 | S6: =COUNTIF(C6:L6,"×") -> 2 | T6: =COUNTIF(C6:L6,"△") -> 4 | U6: =R6*3+S6*1+T6*2 -> 19 | V6: =SUM(R6:T7) -> 9 | W6: =U6/V6 -> 2.111111111
C7: ０－２ | E7: ２－０ | F7: ２－０ | G7: １－１ | H7: １－１ | I7: ０－２ | J7: １－１ | K7: ２－１ | L7: １－１
A8: 3 | B8: 長崎女子商A | C8: × | D8: × | F8: ○ | G8: △ | H8: ○ | I8: × | J8: × | K8: × | L8: × | M8: =R8&" - "&S8&" - "&T8 -> 2 - 6 - 1 | N8: =U8 -> 13 | O8: =ROUND(W8,2) -> 1.44 | P8: =RANK(W8,W$4:W$23) -> 8 | R8: =COUNTIF(C8:L8,"○") -> 2 | S8: =COUNTIF(C8:L8,"×") -> 6 | T8: =COUNTIF(C8:L8,"△") -> 1 | U8: 13 | V8: =SUM(R8:T9) -> 9 | W8: =U8/V8 -> 1.444444444
C9: １－２ | D9: ０－２ | F9: ２－０ | G9: １－１ | H9: ２－０ | I9: ０－２ | J9: ０－２ | K9: W/O | L9: ０－１
A10: 4 | B10: 城南B | C10: × | D10: × | E10: × | G10: × | H10: △ | I10: × | J10: × | K10: ○ | L10: × | M10: =R10&" - "&S10&" - "&T10 -> 1 - 7 - 1 | N10: =U10 -> 12 | O10: =ROUND(W10,2) -> 1.33 | P10: =RANK(W10,W$4:W$23) -> 9 | R10: =COUNTIF(C10:L10,"○") -> 1 | S10: =COUNTIF(C10:L10,"×") -> 7 | T10: =COUNTIF(C10:L10,"△") -> 1 | U10: =R10*3+S10*1+T10*2 -> 12 | V10: =SUM(R10:T11) -> 9 | W10: =U10/V10 -> 1.333333333
C11: ０－２ | D11: ０－２ | E11: ０－２ | G11: ０－２ | H11: １－１ | I11: ０－２ | J11: ０－２ | K11: ２－０ | L11: ０－２
A12: 5 | B12: 鹿児島女子B | C12: △ | D12: △ | E12: △ | F12: ○ | H12: △ | I12: × | J12: × | K12: ○ | L12: ○ | M12: =R12&" - "&S12&" - "&T12 -> 3 - 2 - 4 | N12: =U12 -> 19 | O12: =ROUND(W12,2) -> 2.11 | P12: 5 | R12: =COUNTIF(C12:L12,"○") -> 3 | S12: =COUNTIF(C12:L12,"×") -> 2 | T12: =COUNTIF(C12:L12,"△") -> 4 | U12: =R12*3+S12*1+T12*2 -> 19 | V12: =SUM(R12:T13) -> 9 | W12: =U12/V12 -> 2.111111111
C13: １－１ | D13: １－１ | E13: １－１ | F13: ２－０ | H13: １－１ | I13: ０－２ | J13: ０－２ | K13: ２－０ | L13: ２－１
A14: 6 | B14: 高松商B | C14: × | D14: △ | E14: × | F14: △ | G14: △ | I14: × | J14: × | K14: ○ | L14: × | M14: =R14&" - "&S14&" - "&T14 -> 1 - 5 - 3 | N14: =U14 -> 14 | O14: =ROUND(W14,2) -> 1.56 | P14: =RANK(W14,W$4:W$23) -> 7 | R14: =COUNTIF(C14:L14,"○") -> 1 | S14: =COUNTIF(C14:L14,"×") -> 5 | T14: =COUNTIF(C14:L14,"△") -> 3 | U14: =R14*3+S14*1+T14*2 -> 14 | V14: =SUM(R14:T15) -> 9 | W14: =U14/V14 -> 1.555555556
C15: ０－２ | D15: １－１ | E15: ０－２ | F15: １－１ | G15: １－１ | I15: ０－２ | J15: ０－２ | K15: ２－０ | L15: １－２
A16: 7 | B16: 近大福山A | C16: ○ | D16: ○ | E16: ○ | F16: ○ | G16: ○ | H16: ○ | J16: △ | K16: ○ | L16: ○ | M16: =R16&" - "&S16&" - "&T16 -> 8 - 0 - 1 | N16: =U16 -> 26 | O16: =ROUND(W16,2) -> 2.89 | P16: =RANK(W16,W$4:W$23) -> 1 | R16: =COUNTIF(C16:L16,"○") -> 8 | S16: =COUNTIF(C16:L16,"×") -> 0 | T16: =COUNTIF(C16:L16,"△") -> 1 | U16: =R16*3+S16*1+T16*2 -> 26 | V16: =SUM(R16:T17) -> 9 | W16: =U16/V16 -> 2.888888889
C17: １－０ | D17: ２－０ | E17: ２－０ | F17: ２－０ | G17: ２－０ | H17: ２－０ | J17: １－１ | K17: ２－０ | L17: ２－０
A18: 8 | B18: 済美B | C18: △ | D18: △ | E18: ○ | F18: ○ | G18: ○ | H18: ○ | I18: △ | K18: ○ | L18: ○ | M18: =R18&" - "&S18&" - "&T18 -> 6 - 0 - 3 | N18: =U18 -> 24 | O18: =ROUND(W18,2) -> 2.67 | P18: =RANK(W18,W$4:W$23) -> 2 | R18: =COUNTIF(C18:L18,"○") -> 6 | S18: =COUNTIF(C18:L18,"×") -> 0 | T18: =COUNTIF(C18:L18,"△") -> 3 | U18: =R18*3+S18*1+T18*2 -> 24 | V18: =SUM(R18:T19) -> 9 | W18: =U18/V18 -> 2.666666667
C19: １－１ | D19: １－１ | E19: ２－０ | F19: ２－０ | G19: ２－０ | H19: ２－０ | I19: １－１ | K19: ２－０ | L19: ２－０
A20: 9 | B20: 宇和島東B | C20: × | D20: × | E20: ○ | F20: × | G20: × | H20: × | I20: × | J20: × | L20: × | M20: =R20&" - "&S20&" - "&T20 -> 1 - 8 - 0 | N20: =U20 -> 11 | O20: =ROUND(W20,2) -> 1.22 | P20: =RANK(W20,W$4:W$23) -> 10 | R20: =COUNTIF(C20:L20,"○") -> 1 | S20: =COUNTIF(C20:L20,"×") -> 8 | T20: =COUNTIF(C20:L20,"△") -> 0 | U20: =R20*3+S20*1+T20*2 -> 11 | V20: =SUM(R20:T21) -> 9 | W20: =U20/V20 -> 1.222222222
C21: ０－２ | D21: １－２ | E21: W/O | F21: ０－２ | G21: ０－２ | H21: ０－２ | I21: ０－２ | J21: ０－２ | L21: ０－２
A22: 10 | B22: 今治北A | C22: × | D22: △ | E22: ○ | F22: ○ | G22: × | H22: ○ | I22: × | J22: × | K22: ○ | M22: =R22&" - "&S22&" - "&T22 -> 4 - 4 - 1 | N22: =U22 -> 18 | O22: =ROUND(W22,2) -> 2 | P22: =RANK(W22,W$4:W$23) -> 6 | R22: =COUNTIF(C22:L22,"○") -> 4 | S22: =COUNTIF(C22:L22,"×") -> 4 | T22: =COUNTIF(C22:L22,"△") -> 1 | U22: =R22*3+S22*1+T22*2 -> 18 | V22: =SUM(R22:T23) -> 9 | W22: =U22/V22 -> 2
C23: ０－２ | D23: １－１ | E23: １－０ | F23: ２－０ | G23: １－２ | H23: ２－１ | I23: ０－２ | J23: ０－２ | K23: ２－０
C25: ※ | D25: ポイントは「勝→３点、分→２点、負→１点、棄権→０点」で計算。得点率は「ポイント÷試合数」で計算。
C26: ※ | D26: 和歌山商Aと鹿児島女子Bは同率のため、くじ（じゃんけん）で順位を決定。
C27: ※ | E27: のチームは時間の都合で決勝リーグに不参加。

Sheet 女子スーパー(予選B)
A1: 女子スーパーリーグB ２７～３１コート
C3: 高知工科大B 長崎県選抜 | D3: =B6 -> 済美A | E3: =B8 -> 宇和島東A | F3: =B10 -> 今治北B | G3: =B12 -> 近大福山B | H3: =B14 -> 鹿児島女子A | I3: =B16 -> 城南A | J3: =B18 -> 和歌山商B | K3: =B20 -> 高松商A | L3: =B22 -> 長崎女子商B | M3: 勝敗 | N3: ポイント | O3: 得点率 | P3: 順位 | R3: 勝 | S3: 負 | T3: 分 | U3: ポイント | V3: 試合数 | W3: 勝率
A4: 1 | B4: 高知工科大B 長崎県選抜 | D4: × | E4: ○ | F4: ○ | G4: ○ | H4: △ | I4: ○ | J4: ○ | K4: ○ | L4: ○ | M4: =R4&" - "&S4&" - "&T4 -> 7 - 1 - 1 | N4: =U4 -> 23 | O4: =ROUND(W4,2) -> 2.56 | P4: =RANK(W4,W$4:W$23) -> 3 | R4: =COUNTIF(C4:L4,"○") -> 7 | S4: =COUNTIF(C4:L4,"×") -> 1 | T4: =COUNTIF(C4:L4,"△") -> 1 | U4: 23 | V4: =SUM(R4:T5) -> 9 | W4: =U4/V4 -> 2.555555556
D5: W/O | E5: ２－０ | F5: ２－０ | G5: ２－０ | H5: １－１ | I5: ２－０ | J5: ２－０ | K5: ２－０ | L5: ２－０
A6: 2 | B6: 済美A | C6: ○ | E6: ○ | F6: ○ | G6: ○ | H6: × | I6: △ | J6: ○ | K6: ○ | L6: ○ | M6: =R6&" - "&S6&" - "&T6 -> 7 - 1 - 1 | N6: =U6 -> 24 | O6: =ROUND(W6,2) -> 2.67 | P6: =RANK(W6,W$4:W$23) -> 2 | R6: =COUNTIF(C6:L6,"○") -> 7 | S6: =COUNTIF(C6:L6,"×") -> 1 | T6: =COUNTIF(C6:L6,"△") -> 1 | U6: =R6*3+S6*1+T6*2 -> 24 | V6: =SUM(R6:T7) -> 9 | W6: =U6/V6 -> 2.666666667
C7: W/O | E7: ２－０ | F7: ２－０ | G7: ２－０ | H7: ０－２ | I7: １－１ | J7: ２－０ | K7: ２－０ | L7: ２－０
A8: 3 | B8: 宇和島東A | C8: × | D8: × | F8: × | G8: △ | H8: × | I8: × | J8: ○ | K8: ○ | L8: × | M8: =R8&" - "&S8&" - "&T8 -> 2 - 6 - 1 | N8: =U8 -> 14 | O8: =ROUND(W8,2) -> 1.56 | P8: =RANK(W8,W$4:W$23) -> 7 | R8: =COUNTIF(C8:L8,"○") -> 2 | S8: =COUNTIF(C8:L8,"×") -> 6 | T8: =COUNTIF(C8:L8,"△") -> 1 | U8: =R8*3+S8*1+T8*2 -> 14 | V8: =SUM(R8:T9) -> 9 | W8: =U8/V8 -> 1.555555556
C9: ０－２ | D9: ０－２ | F9: ０－２ | G9: １－１ | H9: ０－２ | I9: ０－２ | J9: ２－０ | K9: ２－１ | L9: ０－２
A10: 4 | B10: 今治北B | C10: × | D10: × | E10: ○ | G10: ○ | H10: × | I10: × | J10: △ | K10: × | L10: ○ | M10: =R10&" - "&S10&" - "&T10 -> 3 - 5 - 1 | N10: =U10 -> 16 | O10: =ROUND(W10,2) -> 1.78 | P10: =RANK(W10,W$4:W$23) -> 5 | R10: =COUNTIF(C10:L10,"○") -> 3 | S10: =COUNTIF(C10:L10,"×") -> 5 | T10: =COUNTIF(C10:L10,"△") -> 1 | U10: =R10*3+S10*1+T10*2 -> 16 | V10: =SUM(R10:T11) -> 9 | W10: =U10/V10 -> 1.777777778
C11: ０－２ | D11: ０－２ | E11: ２－０ | G11: ２－０ | H11: ０－２ | I11: ０－２ | J11: １－１ | K11: ０－２ | L11: ２－０
A12: 5 | B12: 近大福山B | C12: × | D12: × | E12: △ | F12: × | H12: × | I12: × | J12: × | K12: △ | L12: × | M12: =R12&" - "&S12&" - "&T12 -> 0 - 7 - 2 | N12: =U12 -> 11 | O12: =ROUND(W12,2) -> 1.22 | P12: =RANK(W12,W$4:W$23) -> 10 | R12: =COUNTIF(C12:L12,"○") -> 0 | S12: =COUNTIF(C12:L12,"×") -> 7 | T12: =COUNTIF(C12:L12,"△") -> 2 | U12: =R12*3+S12*1+T12*2 -> 11 | V12: =SUM(R12:T13) -> 9 | W12: =U12/V12 -> 1.222222222
C13: ０－２ | D13: ０－２ | E13: １－１ | F13: ０－２ | H13: ０－２ | I13: ０－２ | J13: １－２ | K13: １－１ | L13: ０－１
A14: 6 | B14: 鹿児島女子A | C14: △ | D14: ○ | E14: ○ | F14: ○ | G14: ○ | I14: ○ | J14: ○ | K14: ○ | L14: ○ | M14: =R14&" - "&S14&" - "&T14 -> 8 - 0 - 1 | N14: =U14 -> 26 | O14: =ROUND(W14,2) -> 2.89 | P14: =RANK(W14,W$4:W$23) -> 1 | R14: =COUNTIF(C14:L14,"○") -> 8 | S14: =COUNTIF(C14:L14,"×") -> 0 | T14: =COUNTIF(C14:L14,"△") -> 1 | U14: =R14*3+S14*1+T14*2 -> 26 | V14: =SUM(R14:T15) -> 9 | W14: =U14/V14 -> 2.888888889
C15: １－１ | D15: ２－０ | E15: ２－０ | F15: ２－０ | G15: ２－０ | I15: ２－０ | J15: ２－０ | K15: ２－０ | L15: W/O
A16: 7 | B16: 城南A | C16: × | D16: △ | E16: ○ | F16: ○ | G16: ○ | H16: × | J16: ○ | K16: ○ | L16: ○ | M16: =R16&" - "&S16&" - "&T16 -> 6 - 2 - 1 | N16: =U16 -> 22 | O16: =ROUND(W16,2) -> 2.44 | P16: =RANK(W16,W$4:W$23) -> 4 | R16: =COUNTIF(C16:L16,"○") -> 6 | S16: =COUNTIF(C16:L16,"×") -> 2 | T16: =COUNTIF(C16:L16,"△") -> 1 | U16: =R16*3+S16*1+T16*2 -> 22 | V16: =SUM(R16:T17) -> 9 | W16: =U16/V16 -> 2.444444444
C17: ０－２ | D17: １－１ | E17: ２－０ | F17: ２－０ | G17: ２－０ | H17: ０－２ | J17: ２－０ | K17: ２－０ | L17: ２－０
A18: 8 | B18: 和歌山商B | C18: × | D18: × | E18: × | F18: △ | G18: ○ | H18: × | I18: × | K18: × | L18: × | M18: =R18&" - "&S18&" - "&T18 -> 1 - 7 - 1 | N18: =U18 -> 12 | O18: =ROUND(W18,2) -> 1.33 | P18: =RANK(W18,W$4:W$23) -> 9 | R18: =COUNTIF(C18:L18,"○") -> 1 | S18: =COUNTIF(C18:L18,"×") -> 7 | T18: =COUNTIF(C18:L18,"△") -> 1 | U18: =R18*3+S18*1+T18*2 -> 12 | V18: =SUM(R18:T19) -> 9 | W18: =U18/V18 -> 1.333333333
C19: ０－２ | D19: ０－２ | E19: ０－２ | F19: １－１ | G19: ２－１ | H19: ０－２ | I19: ０－２ | K19: ０－２ | L19: ０－１
A20: 9 | B20: 高松商A | C20: × | D20: × | E20: × | F20: ○ | G20: △ | H20: × | I20: × | J20: ○ | L20: × | M20: =R20&" - "&S20&" - "&T20 -> 2 - 6 - 1 | N20: =U20 -> 14 | O20: =ROUND(W20,2) -> 1.56 | P20: 8 | R20: =COUNTIF(C20:L20,"○") -> 2 | S20: =COUNTIF(C20:L20,"×") -> 6 | T20: =COUNTIF(C20:L20,"△") -> 1 | U20: =R20*3+S20*1+T20*2 -> 14 | V20: =SUM(R20:T21) -> 9 | W20: =U20/V20 -> 1.555555556
C21: ０－２ | D21: ０－２ | E21: １－２ | F21: ２－０ | G21: １－１ | H21: ０－２ | I21: ０－２ | J21: ２－０ | L21: ０－１
A22: 10 | B22: 長崎女子商B | C22: × | D22: × | E22: ○ | F22: × | G22: ○ | H22: × | I22: × | J22: ○ | K22: ○ | M22: =R22&" - "&S22&" - "&T22 -> 4 - 5 - 0 | N22: =U22 -> 16 | O22: =ROUND(W22,2) -> 1.78 | P22: 6 | R22: =COUNTIF(C22:L22,"○") -> 4 | S22: =COUNTIF(C22:L22,"×") -> 5 | T22: =COUNTIF(C22:L22,"△") -> 0 | U22: 16 | V22: =SUM(R22:T23) -> 9 | W22: =U22/V22 -> 1.777777778
C23: ０－２ | D23: ０－２ | E23: ２－０ | F23: ０－２ | G23: １－０ | H23: W/O | I23: ０－２ | J23: １－０ | K23: １－０
C25: ※ | D25: ポイントは「勝→３点、分→２点、負→１点、棄権→０点」で計算。得点率は「ポイント÷試合数」で計算。
C26: ※ | D26: 今治北Bと長崎女子商Bは同率のため、直接対決の結果で順位を決定。
C27: ※ | E27: ・・・ 高知工科大Ｂ、 | H27: ・・・ 長崎県選抜 | J27: が試合。
C28: ※ | E28: のチームは時間の都合で決勝リーグに不参加。

Sheet 女子スーパー (決勝)
A1: 女子スーパー（決勝リーグ） ２２～２６コート(３日目は２１～２５コート)
N2: ※ 予選の結果を持ち越さない。
C3: =B4 -> 近大福山A | D3: =B6 -> 済美B | E3: =B8 -> 和歌山商A | F3: =B10 -> 鹿児島女子B | G3: =B12 -> 鹿児島女子A | H3: =B14 -> 済美A | I3: =B16 -> 城南A | J3: =B18 -> 今治北B | K3: 勝敗 | L3: ポイント | M3: 得点率 | N3: 順位 | P3: 勝 | Q3: 負 | R3: 分 | S3: ポイント | T3: 試合数 | U3: 勝率
A4: 1 | B4: 近大福山A | D4: × | E4: ○ | F4: ○ | G4: ○ | H4: △ | I4: ○ | J4: ○ | K4: =P4&" - "&Q4&" - "&R4 -> 5 - 1 - 1 | L4: =S4 -> 18 | M4: =ROUND(U4,2) -> 2.57 | N4: =RANK(U4,U$4:U$19) -> 2 | P4: =COUNTIF(C4:J4,"○") -> 5 | Q4: =COUNTIF(C4:J4,"×") -> 1 | R4: =COUNTIF(C4:J4,"△") -> 1 | S4: =P4*3+Q4*1+R4*2 -> 18 | T4: =SUM(P4:R5) -> 7 | U4: =S4/T4 -> 2.571428571
D5: ０－１ | E5: ２－０ | F5: ２－０ | G5: １－０ | H5: １－１ | I5: ２－０ | J5: ２－０
A6: 2 | B6: 済美B | C6: ○ | E6: ○ | F6: △ | G6: × | I6: × | J6: ○ | K6: =P6&" - "&Q6&" - "&R6 -> 3 - 2 - 1 | L6: =S6 -> 13 | M6: =ROUND(U6,2) -> 2.17 | N6: =RANK(U6,U$4:U$19) -> 4 | P6: =COUNTIF(C6:J6,"○") -> 3 | Q6: =COUNTIF(C6:J6,"×") -> 2 | R6: =COUNTIF(C6:J6,"△") -> 1 | S6: 13 | T6: =SUM(P6:R7) -> 6 | U6: =S6/T6 -> 2.166666667
C7: １－０ | E7: ２－０ | F7: １－１ | G7: ０－１ | I7: ０－２ | J7: ２－０
A8: 3 | B8: 和歌山商A | C8: × | D8: × | F8: △ | G8: × | H8: × | I8: × | J8: ○ | K8: =P8&" - "&Q8&" - "&R8 -> 1 - 5 - 1 | L8: =S8 -> 10 | M8: =ROUND(U8,2) -> 1.43 | N8: =RANK(U8,U$4:U$19) -> 7 | P8: =COUNTIF(C8:J8,"○") -> 1 | Q8: =COUNTIF(C8:J8,"×") -> 5 | R8: =COUNTIF(C8:J8,"△") -> 1 | S8: =P8*3+Q8*1+R8*2 -> 10 | T8: =SUM(P8:R9) -> 7 | U8: =S8/T8 -> 1.428571429
C9: ０－２ | D9: ０－２ | F9: １－１ | G9: ０－２ | H9: ０－２ | I9: ０－２ | J9: ２－０
A10: 4 | B10: 鹿児島女子B | C10: × | D10: △ | E10: △ | H10: △ | I10: × | J10: ○ | K10: =P10&" - "&Q10&" - "&R10 -> 1 - 2 - 3 | L10: =S10 -> 11 | M10: =ROUND(U10,2) -> 1.83 | N10: =RANK(U10,U$4:U$19) -> 6 | P10: =COUNTIF(C10:J10,"○") -> 1 | Q10: =COUNTIF(C10:J10,"×") -> 2 | R10: =COUNTIF(C10:J10,"△") -> 3 | S10: =P10*3+Q10*1+R10*2 -> 11 | T10: =SUM(P10:R11) -> 6 | U10: =S10/T10 -> 1.833333333
C11: ０－２ | D11: １－１ | E11: １－１ | H11: １－１ | I11: ０－１ | J11: ２－０
A12: 5 | B12: 鹿児島女子A | C12: × | D12: ○ | E12: ○ | H12: ○ | I12: ○ | J12: ○ | K12: =P12&" - "&Q12&" - "&R12 -> 5 - 1 - 0 | L12: =S12 -> 16 | M12: =ROUND(U12,2) -> 2.67 | N12: =RANK(U12,U$4:U$19) -> 1 | P12: =COUNTIF(C12:J12,"○") -> 5 | Q12: =COUNTIF(C12:J12,"×") -> 1 | R12: =COUNTIF(C12:J12,"△") -> 0 | S12: =P12*3+Q12*1+R12*2 -> 16 | T12: =SUM(P12:R13) -> 6 | U12: =S12/T12 -> 2.666666667
C13: ０－１ | D13: １－０ | E13: ２－０ | H13: ２－０ | I13: ２－１ | J13: ２－０
A14: 6 | B14: 済美A | C14: △ | E14: ○ | F14: △ | G14: × | I14: ○ | J14: ○ | K14: =P14&" - "&Q14&" - "&R14 -> 3 - 1 - 2 | L14: =S14 -> 14 | M14: =ROUND(U14,2) -> 2.33 | N14: =RANK(U14,U$4:U$19) -> 3 | P14: =COUNTIF(C14:J14,"○") -> 3 | Q14: =COUNTIF(C14:J14,"×") -> 1 | R14: =COUNTIF(C14:J14,"△") -> 2 | S14: =P14*3+Q14*1+R14*2 -> 14 | T14: =SUM(P14:R15) -> 6 | U14: =S14/T14 -> 2.333333333
C15: １－１ | E15: ２－０ | F15: １－１ | G15: ０－２ | I15: ２－０ | J15: ２－０
A16: 7 | B16: 城南A | C16: × | D16: ○ | E16: ○ | F16: ○ | G16: × | H16: × | J16: ○ | K16: =P16&" - "&Q16&" - "&R16 -> 4 - 3 - 0 | L16: =S16 -> 15 | M16: =ROUND(U16,2) -> 2.14 | N16: =RANK(U16,U$4:U$19) -> 5 | P16: =COUNTIF(C16:J16,"○") -> 4 | Q16: =COUNTIF(C16:J16,"×") -> 3 | R16: =COUNTIF(C16:J16,"△") -> 0 | S16: =P16*3+Q16*1+R16*2 -> 15 | T16: =SUM(P16:R17) -> 7 | U16: =S16/T16 -> 2.142857143
C17: ０－２ | D17: ２－０ | E17: ２－０ | F17: １－０ | G17: １－２ | H17: ０－２ | J17: ２－０
A18: 8 | B18: 今治北B | C18: × | D18: × | E18: × | F18: × | G18: × | H18: × | I18: × | K18: =P18&" - "&Q18&" - "&R18 -> 0 - 7 - 0 | L18: =S18 -> 7 | M18: =ROUND(U18,2) -> 1 | N18: =RANK(U18,U$4:U$19) -> 8 | P18: =COUNTIF(C18:J18,"○") -> 0 | Q18: =COUNTIF(C18:J18,"×") -> 7 | R18: =COUNTIF(C18:J18,"△") -> 0 | S18: =P18*3+Q18*1+R18*2 -> 7 | T18: =SUM(P18:R19) -> 7 | U18: =S18/T18 -> 1
C19: ０－２ | D19: ０－２ | E19: ０－２ | F19: ０－２ | G19: ０－２ | H19: ０－２ | I19: ０－２
C21: ※ | D21: ポイントは「勝→３点、分→２点、負→１点、棄権→０点」で計算。得点率は「ポイント÷試合数」で計算。

Sheet 女子スーパー (順位)
A1: 女子スーパー（順位リーグ） ２７～３１コート（３日目は２６～３０コート）
N2: ※ 予選の結果を持ち越さない。
C3: =B4 -> 今治北A | D3: =B6 -> 高松商B | E3: =B8 -> 城南B | F3: =B10 -> 宇和島東B | G3: =B12 -> 宇和島東A | H3: =B14 -> 高松商A | I3: =B16 -> 和歌山商B | J3: =B18 -> 近大福山B | K3: 勝敗 | L3: ポイント | M3: 得点率 | N3: 順位 | P3: 勝 | Q3: 負 | R3: 分 | S3: ポイント | T3: 試合数 | U3: 勝率
A4: 1 | B4: 今治北A | D4: ○ | E4: ○ | F4: ○ | G4: ○ | H4: × | I4: ○ | J4: ○ | K4: =P4&" - "&Q4&" - "&R4 -> 6 - 1 - 0 | L4: =S4 -> 19 | M4: =ROUND(U4,2) -> 2.71 | N4: =RANK(U4,U$4:U$19) -> 1 | P4: =COUNTIF(C4:J4,"○") -> 6 | Q4: =COUNTIF(C4:J4,"×") -> 1 | R4: =COUNTIF(C4:J4,"△") -> 0 | S4: =P4*3+Q4*1+R4*2 -> 19 | T4: =SUM(P4:R5) -> 7 | U4: =S4/T4 -> 2.714285714
D5: ２－０ | E5: ２－０ | F5: ２－０ | G5: ２－１ | H5: １－２ | I5: ２－０ | J5: ２－０
A6: 2 | B6: 高松商B | C6: × | E6: △ | F6: △ | G6: △ | I6: △ | J6: ○ | K6: =P6&" - "&Q6&" - "&R6 -> 1 - 1 - 4 | L6: =S6 -> 12 | M6: =ROUND(U6,2) -> 2 | N6: =RANK(U6,U$4:U$19) -> 5 | P6: =COUNTIF(C6:J6,"○") -> 1 | Q6: =COUNTIF(C6:J6,"×") -> 1 | R6: =COUNTIF(C6:J6,"△") -> 4 | S6: 12 | T6: =SUM(P6:R7) -> 6 | U6: =S6/T6 -> 2
C7: ０－２ | E7: １－１ | F7: １－１ | G7: １－１ | I7: １－１ | J7: ２－０
A8: 3 | B8: 城南B | C8: × | D8: △ | F8: ○ | G8: ○ | H8: × | I8: △ | J8: ○ | K8: =P8&" - "&Q8&" - "&R8 -> 3 - 2 - 2 | L8: =S8 -> 15 | M8: =ROUND(U8,2) -> 2.14 | N8: =RANK(U8,U$4:U$19) -> 3 | P8: =COUNTIF(C8:J8,"○") -> 3 | Q8: =COUNTIF(C8:J8,"×") -> 2 | R8: =COUNTIF(C8:J8,"△") -> 2 | S8: =P8*3+Q8*1+R8*2 -> 15 | T8: =SUM(P8:R9) -> 7 | U8: =S8/T8 -> 2.142857143
C9: ０－２ | D9: １－１ | F9: １－０ | G9: ２－１ | H9: ０－２ | I9: １－１ | J9: ２－０
A10: 4 | B10: 宇和島東B | C10: × | D10: △ | E10: × | H10: △ | I10: × | J10: ○ | K10: =P10&" - "&Q10&" - "&R10 -> 1 - 3 - 2 | L10: =S10 -> 10 | M10: =ROUND(U10,2) -> 1.67 | N10: =RANK(U10,U$4:U$19) -> 6 | P10: =COUNTIF(C10:J10,"○") -> 1 | Q10: =COUNTIF(C10:J10,"×") -> 3 | R10: =COUNTIF(C10:J10,"△") -> 2 | S10: =P10*3+Q10*1+R10*2 -> 10 | T10: =SUM(P10:R11) -> 6 | U10: =S10/T10 -> 1.666666667
C11: ０－２ | D11: １－１ | E11: ０－１ | H11: １－１ | I11: １－２ | J11: ２－１
A12: 5 | B12: 宇和島東A | C12: × | D12: △ | E12: × | H12: × | I12: △ | J12: ○ | K12: =P12&" - "&Q12&" - "&R12 -> 1 - 3 - 2 | L12: =S12 -> 10 | M12: =ROUND(U12,2) -> 1.67 | N12: =RANK(U12,U$4:U$19) -> 6 | P12: =COUNTIF(C12:J12,"○") -> 1 | Q12: =COUNTIF(C12:J12,"×") -> 3 | R12: =COUNTIF(C12:J12,"△") -> 2 | S12: =P12*3+Q12*1+R12*2 -> 10 | T12: =SUM(P12:R13) -> 6 | U12: =S12/T12 -> 1.666666667
C13: １－２ | D13: １－１ | E13: １－２ | H13: ０－２ | I13: １－１ | J13: ２－０
A14: 6 | B14: 高松商A | C14: ○ | E14: ○ | F14: △ | G14: ○ | I14: △ | J14: ○ | K14: =P14&" - "&Q14&" - "&R14 -> 4 - 0 - 2 | L14: =S14 -> 16 | M14: =ROUND(U14,2) -> 2.67 | N14: =RANK(U14,U$4:U$19) -> 2 | P14: =COUNTIF(C14:J14,"○") -> 4 | Q14: =COUNTIF(C14:J14,"×") -> 0 | R14: =COUNTIF(C14:J14,"△") -> 2 | S14: =P14*3+Q14*1+R14*2 -> 16 | T14: =SUM(P14:R15) -> 6 | U14: =S14/T14 -> 2.666666667
C15: ２－１ | E15: ２－０ | F15: １－１ | G15: ２－０ | I15: １－１ | J15: ２－０
A16: 7 | B16: 和歌山商B | C16: × | D16: △ | E16: △ | F16: ○ | G16: △ | H16: △ | J16: ○ | K16: =P16&" - "&Q16&" - "&R16 -> 2 - 1 - 4 | L16: =S16 -> 15 | M16: =ROUND(U16,2) -> 2.14 | N16: 4 | P16: =COUNTIF(C16:J16,"○") -> 2 | Q16: =COUNTIF(C16:J16,"×") -> 1 | R16: =COUNTIF(C16:J16,"△") -> 4 | S16: =P16*3+Q16*1+R16*2 -> 15 | T16: =SUM(P16:R17) -> 7 | U16: =S16/T16 -> 2.142857143
C17: ０－２ | D17: １－１ | E17: １－１ | F17: ２－１ | G17: １－１ | H17: １－１ | J17: ２－０
A18: 8 | B18: 近大福山B | C18: × | D18: × | E18: × | F18: × | G18: × | H18: × | I18: × | K18: =P18&" - "&Q18&" - "&R18 -> 0 - 7 - 0 | L18: =S18 -> 7 | M18: =ROUND(U18,2) -> 1 | N18: =RANK(U18,U$4:U$19) -> 8 | P18: =COUNTIF(C18:J18,"○") -> 0 | Q18: =COUNTIF(C18:J18,"×") -> 7 | R18: =COUNTIF(C18:J18,"△") -> 0 | S18: =P18*3+Q18*1+R18*2 -> 7 | T18: =SUM(P18:R19) -> 7 | U18: =S18/T18 -> 1
C19: ０－２ | D19: ０－２ | E19: ０－２ | F19: １－２ | G19: ０－２ | H19: ０－２ | I19: ０－２
C21: ※ | D21: ポイントは「勝→３点、分→２点、負→１点、棄権→０点」で計算。得点率は「ポイント÷試合数」で計算。
C22: ※ | D22: 城南Bと和歌山商Ｂは同率のため、直接対決の結果で順位を決定。
C23: ※ | D23: 宇和島東Aと宇和島東Bは同率、勝ち数も同じで直接対決がないため、同順位。

Sheet 女子一般(予選A)
A1: 女子一般リーグA ３２～３６コート（３６コートはBリーグと共用）
C3: =B4 -> 鹿児島女子C | D3: =B6 -> 観音寺第一B | E3: =B8 -> 高松商C | F3: =B10 -> 川之石A | G3: =B12 -> 松山商B | H3: =B14 -> 伊予農B | I3: =B16 -> 松山商C | J3: =B18 -> 川之石C | K3: =B20 -> 宇和島東C | L3: =B22 -> 富岡西B | M3: 勝敗 | N3: ポイント | O3: 得点率 | P3: 順位 | R3: 勝 | S3: 負 | T3: 分 | U3: ポイント | V3: 試合数 | W3: 勝率
A4: 1 | B4: 鹿児島女子C | D4: ○ | E4: ○ | F4: ○ | G4: ○ | H4: ○ | I4: ○ | J4: ○ | K4: ○ | L4: ○ | M4: =R4&" - "&S4&" - "&T4 -> 9 - 0 - 0 | N4: =U4 -> 27 | O4: =ROUND(W4,2) -> 3 | P4: =RANK(W4,W$4:W$23) -> 1 | R4: =COUNTIF(C4:L4,"○") -> 9 | S4: =COUNTIF(C4:L4,"×") -> 0 | T4: =COUNTIF(C4:L4,"△") -> 0 | U4: =R4*3+S4*1+T4*2 -> 27 | V4: =SUM(R4:T5) -> 9 | W4: =U4/V4 -> 3
D5: ２－０ | E5: ２－０ | F5: ２－０ | G5: ２－０ | H5: ２－０ | I5: ２－０ | J5: ２－０ | K5: ２－０ | L5: ２－０
A6: 2 | B6: 観音寺第一B | C6: × | E6: × | F6: × | G6: ○ | H6: × | I6: △ | J6: × | K6: × | L6: ○ | M6: =R6&" - "&S6&" - "&T6 -> 2 - 6 - 1 | N6: =U6 -> 14 | O6: =ROUND(W6,2) -> 1.56 | P6: =RANK(W6,W$4:W$23) -> 7 | R6: =COUNTIF(C6:L6,"○") -> 2 | S6: =COUNTIF(C6:L6,"×") -> 6 | T6: =COUNTIF(C6:L6,"△") -> 1 | U6: =R6*3+S6*1+T6*2 -> 14 | V6: =SUM(R6:T7) -> 9 | W6: =U6/V6 -> 1.555555556
C7: ０－２ | E7: ０－２ | F7: ０－２ | G7: ２－１ | H7: ０－２ | I7: １－１ | J7: ０－２ | K7: ０－２ | L7: ２－０
A8: 3 | B8: 高松商C | C8: × | D8: ○ | F8: △ | G8: ○ | H8: ○ | I8: ○ | J8: △ | K8: × | L8: ○ | M8: =R8&" - "&S8&" - "&T8 -> 5 - 2 - 2 | N8: =U8 -> 21 | O8: =ROUND(W8,2) -> 2.33 | P8: =RANK(W8,W$4:W$23) -> 4 | R8: =COUNTIF(C8:L8,"○") -> 5 | S8: =COUNTIF(C8:L8,"×") -> 2 | T8: =COUNTIF(C8:L8,"△") -> 2 | U8: =R8*3+S8*1+T8*2 -> 21 | V8: =SUM(R8:T9) -> 9 | W8: =U8/V8 -> 2.333333333
C9: ０－２ | D9: ２－０ | F9: １－１ | G9: ２－０ | H9: ２－０ | I9: ２－０ | J9: １－１ | K9: ０－２ | L9: ２－０
A10: 4 | B10: 川之石A | C10: × | D10: ○ | E10: △ | G10: ○ | H10: × | I10: ○ | K10: ○ | L10: ○ | M10: =R10&" - "&S10&" - "&T10 -> 5 - 2 - 1 | N10: =U10 -> 19 | O10: =ROUND(W10,2) -> 2.38 | P10: =RANK(W10,W$4:W$23) -> 2 | R10: =COUNTIF(C10:L10,"○") -> 5 | S10: =COUNTIF(C10:L10,"×") -> 2 | T10: =COUNTIF(C10:L10,"△") -> 1 | U10: =R10*3+S10*1+T10*2 -> 19 | V10: =SUM(R10:T11) -> 8 | W10: =U10/V10 -> 2.375
C11: ０－２ | D11: ２－０ | E11: １－１ | G11: ２－０ | H11: １－２ | I11: ２－０ | K11: ２－０ | L11: ２－０
A12: 5 | B12: 松山商B | C12: × | D12: × | E12: × | F12: × | H12: × | J12: × | K12: × | L12: ○ | M12: =R12&" - "&S12&" - "&T12 -> 1 - 7 - 0 | N12: =U12 -> 10 | O12: =ROUND(W12,2) -> 1.25 | P12: =RANK(W12,W$4:W$23) -> 9 | R12: =COUNTIF(C12:L12,"○") -> 1 | S12: =COUNTIF(C12:L12,"×") -> 7 | T12: =COUNTIF(C12:L12,"△") -> 0 | U12: =R12*3+S12*1+T12*2 -> 10 | V12: =SUM(R12:T13) -> 8 | W12: =U12/V12 -> 1.25
C13: ０－２ | D13: １－２ | E13: ０－２ | F13: ０－２ | H13: ０－２ | J13: １－２ | K13: ０－２ | L13: ２－０
A14: 6 | B14: 伊予農B | C14: × | D14: ○ | E14: × | F14: ○ | G14: ○ | I14: ○ | J14: × | K14: ○ | L14: ○ | M14: =R14&" - "&S14&" - "&T14 -> 6 - 3 - 0 | N14: =U14 -> 21 | O14: =ROUND(W14,2) -> 2.33 | P14: 5 | R14: =COUNTIF(C14:L14,"○") -> 6 | S14: =COUNTIF(C14:L14,"×") -> 3 | T14: =COUNTIF(C14:L14,"△") -> 0 | U14: =R14*3+S14*1+T14*2 -> 21 | V14: =SUM(R14:T15) -> 9 | W14: =U14/V14 -> 2.333333333
C15: ０－２ | D15: ２－０ | E15: ０－２ | F15: ２－１ | G15: ２－０ | I15: ２－０ | J15: ０－２ | K15: ２－０ | L15: ２－０
A16: 7 | B16: 松山商C | C16: × | D16: △ | E16: × | F16: × | H16: × | J16: △ | K16: × | L16: ○ | M16: =R16&" - "&S16&" - "&T16 -> 1 - 5 - 2 | N16: =U16 -> 12 | O16: =ROUND(W16,2) -> 1.5 | P16: =RANK(W16,W$4:W$23) -> 8 | R16: =COUNTIF(C16:L16,"○") -> 1 | S16: =COUNTIF(C16:L16,"×") -> 5 | T16: =COUNTIF(C16:L16,"△") -> 2 | U16: =R16*3+S16*1+T16*2 -> 12 | V16: =SUM(R16:T17) -> 8 | W16: =U16/V16 -> 1.5
C17: ０－２ | D17: １－１ | E17: ０－２ | F17: ０－２ | H17: ０－２ | J17: １－１ | K17: ０－２ | L17: ２－０
A18: 8 | B18: 川之石C | C18: × | D18: ○ | E18: △ | G18: ○ | H18: ○ | I18: △ | K18: △ | L18: ○ | M18: =R18&" - "&S18&" - "&T18 -> 4 - 1 - 3 | N18: =U18 -> 19 | O18: =ROUND(W18,2) -> 2.38 | P18: 3 | R18: =COUNTIF(C18:L18,"○") -> 4 | S18: =COUNTIF(C18:L18,"×") -> 1 | T18: =COUNTIF(C18:L18,"△") -> 3 | U18: =R18*3+S18*1+T18*2 -> 19 | V18: =SUM(R18:T19) -> 8 | W18: =U18/V18 -> 2.375
C19: ０－２ | D19: ２－０ | E19: １－１ | G19: ２－１ | H19: ２－０ | I19: １－１ | K19: １－１ | L19: ２－０
A20: 9 | B20: 宇和島東C | C20: × | D20: ○ | E20: ○ | F20: × | G20: ○ | H20: × | I20: ○ | J20: △ | L20: ○ | M20: =R20&" - "&S20&" - "&T20 -> 5 - 3 - 1 | N20: =U20 -> 20 | O20: =ROUND(W20,2) -> 2.22 | P20: =RANK(W20,W$4:W$23) -> 6 | R20: =COUNTIF(C20:L20,"○") -> 5 | S20: =COUNTIF(C20:L20,"×") -> 3 | T20: =COUNTIF(C20:L20,"△") -> 1 | U20: =R20*3+S20*1+T20*2 -> 20 | V20: =SUM(R20:T21) -> 9 | W20: =U20/V20 -> 2.222222222
C21: ０－２ | D21: ２－０ | E21: ２－０ | F21: ０－２ | G21: ２－０ | H21: ０－２ | I21: ２－０ | J21: １－１ | L21: ２－０
A22: 10 | B22: 富岡西B | C22: × | D22: × | E22: × | F22: × | G22: × | H22: × | I22: × | J22: × | K22: × | M22: =R22&" - "&S22&" - "&T22 -> 0 - 9 - 0 | N22: =U22 -> 9 | O22: =ROUND(W22,2) -> 1 | P22: =RANK(W22,W$4:W$23) -> 10 | R22: =COUNTIF(C22:L22,"○") -> 0 | S22: =COUNTIF(C22:L22,"×") -> 9 | T22: =COUNTIF(C22:L22,"△") -> 0 | U22: =R22*3+S22*1+T22*2 -> 9 | V22: =SUM(R22:T23) -> 9 | W22: =U22/V22 -> 1
C23: ０－２ | D23: ０－２ | E23: ０－２ | F23: ０－２ | G23: ０－２ | H23: ０－２ | I23: ０－２ | J23: ０－２ | K23: ０－２
C25: ※ | D25: ポイントは「勝→３点、分→２点、負→１点、棄権→０点」で計算。得点率は「ポイント÷試合数」で計算。
C26: ※ | D26: 川之石Aと川之石Cは同率のため、勝ち数で順位を決定。
C27: ※ | D27: 高松商Cと伊予農Bは同率のため、直接対決の結果で順位を決定。

Sheet 女子一般(予選B)
A1: 女子一般リーグB ３６～４０コート（３６コートはAリーグと共用）
C3: =B4 -> 鹿児島女子D | D3: =B6 -> 観音寺第一A | E3: =B8 -> 宇和島東D | F3: =B10 -> 今治北C | G3: =B12 -> 伊予農A | H3: =B14 -> 伊予農C | I3: =B16 -> 津島 | J3: =B18 -> 松山商A | K3: =B20 -> 川之石B | L3: =B22 -> 富岡西A | M3: 勝敗 | N3: ポイント | O3: 得点率 | P3: 順位 | R3: 勝 | S3: 負 | T3: 分 | U3: ポイント | V3: 試合数 | W3: 勝率
A4: 1 | B4: 鹿児島女子D | D4: ○ | E4: ○ | F4: △ | G4: ○ | H4: ○ | I4: ○ | J4: ○ | K4: △ | L4: ○ | M4: =R4&" - "&S4&" - "&T4 -> 7 - 0 - 2 | N4: =U4 -> 25 | O4: =ROUND(W4,2) -> 2.78 | P4: =RANK(W4,W$4:W$23) -> 1 | R4: =COUNTIF(C4:L4,"○") -> 7 | S4: =COUNTIF(C4:L4,"×") -> 0 | T4: =COUNTIF(C4:L4,"△") -> 2 | U4: =R4*3+S4*1+T4*2 -> 25 | V4: =SUM(R4:T5) -> 9 | W4: =U4/V4 -> 2.777777778
D5: ２－０ | E5: ２－０ | F5: １－１ | G5: ２－０ | H5: ２－０ | I5: ２－０ | J5: ２－１ | K5: １－１ | L5: ２－０
A6: 2 | B6: 観音寺第一A | C6: × | E6: × | F6: × | G6: × | H6: ○ | I6: × | J6: × | K6: × | L6: × | M6: =R6&" - "&S6&" - "&T6 -> 1 - 8 - 0 | N6: =U6 -> 11 | O6: =ROUND(W6,2) -> 1.22 | P6: =RANK(W6,W$4:W$23) -> 9 | R6: =COUNTIF(C6:L6,"○") -> 1 | S6: =COUNTIF(C6:L6,"×") -> 8 | T6: =COUNTIF(C6:L6,"△") -> 0 | U6: =R6*3+S6*1+T6*2 -> 11 | V6: =SUM(R6:T7) -> 9 | W6: =U6/V6 -> 1.222222222
C7: ０－２ | E7: ０－２ | F7: ０－２ | G7: ０－２ | H7: ２－０ | I7: １－２ | J7: １－２ | K7: ０－２ | L7: ０－２
A8: 3 | B8: 宇和島東D | C8: × | D8: ○ | F8: × | G8: × | H8: ○ | I8: △ | J8: × | K8: × | L8: ○ | M8: =R8&" - "&S8&" - "&T8 -> 3 - 5 - 1 | N8: =U8 -> 16 | O8: =ROUND(W8,2) -> 1.78 | P8: =RANK(W8,W$4:W$23) -> 7 | R8: =COUNTIF(C8:L8,"○") -> 3 | S8: =COUNTIF(C8:L8,"×") -> 5 | T8: =COUNTIF(C8:L8,"△") -> 1 | U8: =R8*3+S8*1+T8*2 -> 16 | V8: =SUM(R8:T9) -> 9 | W8: =U8/V8 -> 1.777777778
C9: ０－２ | D9: ２－０ | F9: ０－２ | G9: ０－１ | H9: ２－０ | I9: １－１ | J9: ０－２ | K9: ０－２ | L9: １－０
A10: 4 | B10: 今治北C | C10: △ | D10: ○ | E10: ○ | G10: △ | H10: ○ | I10: ○ | J10: × | K10: △ | L10: ○ | M10: =R10&" - "&S10&" - "&T10 -> 5 - 1 - 3 | N10: =U10 -> 22 | O10: =ROUND(W10,2) -> 2.44 | P10: =RANK(W10,W$4:W$23) -> 3 | R10: =COUNTIF(C10:L10,"○") -> 5 | S10: =COUNTIF(C10:L10,"×") -> 1 | T10: =COUNTIF(C10:L10,"△") -> 3 | U10: =R10*3+S10*1+T10*2 -> 22 | V10: =SUM(R10:T11) -> 9 | W10: =U10/V10 -> 2.444444444
C11: １－１ | D11: ２－０ | E11: ２－０ | G11: １－１ | H11: ２－０ | I11: ２－１ | J11: １－２ | K11: １－１ | L11: ２－０
A12: 5 | B12: 伊予農A | C12: × | D12: ○ | E12: ○ | F12: △ | I12: ○ | J12: ○ | K12: × | L12: × | M12: =R12&" - "&S12&" - "&T12 -> 4 - 3 - 1 | N12: =U12 -> 17 | O12: =ROUND(W12,2) -> 2.13 | P12: =RANK(W12,W$4:W$23) -> 5 | R12: =COUNTIF(C12:L12,"○") -> 4 | S12: =COUNTIF(C12:L12,"×") -> 3 | T12: =COUNTIF(C12:L12,"△") -> 1 | U12: =R12*3+S12*1+T12*2 -> 17 | V12: =SUM(R12:T13) -> 8 | W12: =U12/V12 -> 2.125
C13: ０－２ | D13: ２－０ | E13: １－０ | F13: １－１ | I13: ２－０ | J13: １－０ | K13: ０－１ | L13: ０－２
A14: 6 | B14: 伊予農C | C14: × | D14: × | E14: × | F14: × | I14: △ | J14: × | K14: × | L14: × | M14: =R14&" - "&S14&" - "&T14 -> 0 - 7 - 1 | N14: =U14 -> 9 | O14: =ROUND(W14,2) -> 1.13 | P14: =RANK(W14,W$4:W$23) -> 10 | R14: =COUNTIF(C14:L14,"○") -> 0 | S14: =COUNTIF(C14:L14,"×") -> 7 | T14: =COUNTIF(C14:L14,"△") -> 1 | U14: =R14*3+S14*1+T14*2 -> 9 | V14: =SUM(R14:T15) -> 8 | W14: =U14/V14 -> 1.125
C15: ０－２ | D15: ０－２ | E15: ０－２ | F15: ０－２ | I15: １－１ | J15: ０－２ | K15: ０－２ | L15: ０－２
A16: 7 | B16: 津島 | C16: × | D16: ○ | E16: △ | F16: × | G16: × | H16: △ | J16: × | K16: × | L16: △ | M16: =R16&" - "&S16&" - "&T16 -> 1 - 5 - 3 | N16: =U16 -> 14 | O16: =ROUND(W16,2) -> 1.56 | P16: =RANK(W16,W$4:W$23) -> 8 | R16: =COUNTIF(C16:L16,"○") -> 1 | S16: =COUNTIF(C16:L16,"×") -> 5 | T16: =COUNTIF(C16:L16,"△") -> 3 | U16: =R16*3+S16*1+T16*2 -> 14 | V16: =SUM(R16:T17) -> 9 | W16: =U16/V16 -> 1.555555556
C17: ０－２ | D17: ２－１ | E17: １－１ | F17: １－２ | G17: ０－２ | H17: １－１ | J17: ０－２ | K17: ０－２ | L17: １－１
A18: 8 | B18: 松山商A | C18: × | D18: ○ | E18: ○ | F18: ○ | G18: × | H18: ○ | I18: ○ | K18: △ | L18: △ | M18: =R18&" - "&S18&" - "&T18 -> 5 - 2 - 2 | N18: =U18 -> 21 | O18: =ROUND(W18,2) -> 2.33 | P18: =RANK(W18,W$4:W$23) -> 4 | R18: =COUNTIF(C18:L18,"○") -> 5 | S18: =COUNTIF(C18:L18,"×") -> 2 | T18: =COUNTIF(C18:L18,"△") -> 2 | U18: =R18*3+S18*1+T18*2 -> 21 | V18: =SUM(R18:T19) -> 9 | W18: =U18/V18 -> 2.333333333
C19: １－２ | D19: ２－１ | E19: ２－０ | F19: ２－１ | G19: ０－１ | H19: ２－０ | I19: ２－０ | K19: １－１ | L19: １－１
A20: 9 | B20: 川之石B | C20: △ | D20: ○ | E20: ○ | F20: △ | G20: ○ | H20: ○ | I20: ○ | J20: △ | L20: ○ | M20: =R20&" - "&S20&" - "&T20 -> 6 - 0 - 3 | N20: =U20 -> 24 | O20: =ROUND(W20,2) -> 2.67 | P20: =RANK(W20,W$4:W$23) -> 2 | R20: =COUNTIF(C20:L20,"○") -> 6 | S20: =COUNTIF(C20:L20,"×") -> 0 | T20: =COUNTIF(C20:L20,"△") -> 3 | U20: =R20*3+S20*1+T20*2 -> 24 | V20: =SUM(R20:T21) -> 9 | W20: =U20/V20 -> 2.666666667
C21: １－１ | D21: ２－０ | E21: ２－０ | F21: １－１ | G21: １－０ | H21: ２－０ | I21: ２－０ | J21: １－１ | L21: １－０
A22: 10 | B22: 富岡西A | C22: × | D22: ○ | E22: × | F22: × | G22: ○ | H22: ○ | I22: △ | J22: △ | K22: × | M22: =R22&" - "&S22&" - "&T22 -> 3 - 4 - 2 | N22: =U22 -> 17 | O22: =ROUND(W22,2) -> 1.89 | P22: =RANK(W22,W$4:W$23) -> 6 | R22: =COUNTIF(C22:L22,"○") -> 3 | S22: =COUNTIF(C22:L22,"×") -> 4 | T22: =COUNTIF(C22:L22,"△") -> 2 | U22: =R22*3+S22*1+T22*2 -> 17 | V22: =SUM(R22:T23) -> 9 | W22: =U22/V22 -> 1.888888889
C23: ０－２ | D23: ２－０ | E23: ０－１ | F23: ０－２ | G23: ２－０ | H23: ２－０ | I23: １－１ | J23: １－１ | K23: ０－１
C25: ※ | D25: ポイントは「勝→３点、分→２点、負→１点、棄権→０点」で計算。得点率は「ポイント÷試合数」で計算。

Sheet 女子一般 (決勝)
A1: 女子一般（決勝リーグ） ３２～３６コート（３日目は３１～３５コート）
P2: ※ 予選の結果を持ち越す。
C3: =B4 -> 鹿児島女子C | D3: =B6 -> 川之石A | E3: =B8 -> 川之石C | F3: =B10 -> 高松商C | G3: =B12 -> 伊予農B | H3: =B14 -> 鹿児島女子D | I3: =B16 -> 川之石B | J3: =B18 -> 今治北C | K3: =B20 -> 松山商A | L3: =B22 -> 伊予農A | M3: 勝敗 | N3: ポイント | O3: 得点率 | P3: 順位 | R3: 勝 | S3: 負 | T3: 分 | U3: ポイント | V3: 試合数 | W3: 勝率
A4: 1 | B4: 鹿児島女子C | D4: ○ | E4: ○ | F4: ○ | G4: ○ | I4: ○ | J4: ○ | K4: ○ | L4: ○ | M4: =R4&" - "&S4&" - "&T4 -> 8 - 0 - 0 | N4: =U4 -> 24 | O4: =ROUND(W4,2) -> 3 | P4: =RANK(W4,W$4:W$23) -> 1 | R4: =COUNTIF(C4:L4,"○") -> 8 | S4: =COUNTIF(C4:L4,"×") -> 0 | T4: =COUNTIF(C4:L4,"△") -> 0 | U4: =R4*3+S4*1+T4*2 -> 24 | V4: =SUM(R4:T5) -> 8 | W4: =U4/V4 -> 3
D5: ２－０ | E5: ２－０ | F5: ２－０ | G5: ２－０ | I5: ２－０ | J5: ２－０ | K5: ２－０ | L5: ２－０
A6: 2 | B6: 川之石A | C6: × | F6: △ | G6: × | H6: × | J6: △ | K6: △ | L6: ○ | M6: =R6&" - "&S6&" - "&T6 -> 1 - 3 - 3 | N6: =U6 -> 12 | O6: =ROUND(W6,2) -> 1.71 | P6: =RANK(W6,W$4:W$23) -> 7 | R6: =COUNTIF(C6:L6,"○") -> 1 | S6: =COUNTIF(C6:L6,"×") -> 3 | T6: =COUNTIF(C6:L6,"△") -> 3 | U6: 12 | V6: =SUM(R6:T7) -> 7 | W6: =U6/V6 -> 1.714285714
C7: ０－２ | F7: １－１ | G7: １－２ | H7: ０－２ | J7: １－１ | K7: １－１ | L7: １－０
A8: 3 | B8: 川之石C | C8: × | F8: △ | G8: ○ | H8: × | J8: × | K8: × | L8: × | M8: =R8&" - "&S8&" - "&T8 -> 1 - 5 - 1 | N8: =U8 -> 10 | O8: =ROUND(W8,2) -> 1.43 | P8: =RANK(W8,W$4:W$23) -> 9 | R8: =COUNTIF(C8:L8,"○") -> 1 | S8: =COUNTIF(C8:L8,"×") -> 5 | T8: =COUNTIF(C8:L8,"△") -> 1 | U8: =R8*3+S8*1+T8*2 -> 10 | V8: =SUM(R8:T9) -> 7 | W8: =U8/V8 -> 1.428571429
C9: ０－２ | F9: １－１ | G9: ２－０ | H9: １－２ | J9: ０－２ | K9: １－２ | L9: ０－２
A10: 4 | B10: 高松商C | C10: × | D10: △ | E10: △ | G10: ○ | H10: × | I10: × | J10: × | K10: × | L10: △ | M10: =R10&" - "&S10&" - "&T10 -> 1 - 5 - 3 | N10: =U10 -> 14 | O10: =ROUND(W10,2) -> 1.56 | P10: =RANK(W10,W$4:W$23) -> 8 | R10: =COUNTIF(C10:L10,"○") -> 1 | S10: =COUNTIF(C10:L10,"×") -> 5 | T10: =COUNTIF(C10:L10,"△") -> 3 | U10: =R10*3+S10*1+T10*2 -> 14 | V10: =SUM(R10:T11) -> 9 | W10: =U10/V10 -> 1.555555556
C11: ０－２ | D11: １－１ | E11: １－１ | G11: ２－０ | H11: ０－２ | I11: ０－２ | J11: ０－２ | K11: １－２ | L11: １－１
A12: 5 | B12: 伊予農B | C12: × | D12: ○ | E12: × | F12: × | H12: × | I12: × | J12: × | K12: × | M12: =R12&" - "&S12&" - "&T12 -> 1 - 7 - 0 | N12: =U12 -> 10 | O12: =ROUND(W12,2) -> 1.25 | P12: =RANK(W12,W$4:W$23) -> 10 | R12: =COUNTIF(C12:L12,"○") -> 1 | S12: =COUNTIF(C12:L12,"×") -> 7 | T12: =COUNTIF(C12:L12,"△") -> 0 | U12: =R12*3+S12*1+T12*2 -> 10 | V12: =SUM(R12:T13) -> 8 | W12: =U12/V12 -> 1.25
C13: ０－２ | D13: ２－１ | E13: ０－２ | F13: ０－２ | H13: ０－２ | I13: ０－２ | J13: ０－２ | K13: １－２
A14: 6 | B14: 鹿児島女子D | D14: ○ | E14: ○ | F14: ○ | G14: ○ | I14: △ | J14: △ | K14: ○ | L14: ○ | M14: =R14&" - "&S14&" - "&T14 -> 6 - 0 - 2 | N14: =U14 -> 22 | O14: =ROUND(W14,2) -> 2.75 | P14: =RANK(W14,W$4:W$23) -> 2 | R14: =COUNTIF(C14:L14,"○") -> 6 | S14: =COUNTIF(C14:L14,"×") -> 0 | T14: =COUNTIF(C14:L14,"△") -> 2 | U14: =R14*3+S14*1+T14*2 -> 22 | V14: =SUM(R14:T15) -> 8 | W14: =U14/V14 -> 2.75
D15: ２－０ | E15: ２－１ | F15: ２－０ | G15: ２－０ | I15: １－１ | J15: １－１ | K15: ２－１ | L15: ２－０
A16: 7 | B16: 川之石B | C16: × | F16: ○ | G16: ○ | H16: △ | J16: △ | K16: △ | L16: ○ | M16: =R16&" - "&S16&" - "&T16 -> 3 - 1 - 3 | N16: =U16 -> 16 | O16: =ROUND(W16,2) -> 2.29 | P16: =RANK(W16,W$4:W$23) -> 3 | R16: =COUNTIF(C16:L16,"○") -> 3 | S16: =COUNTIF(C16:L16,"×") -> 1 | T16: =COUNTIF(C16:L16,"△") -> 3 | U16: =R16*3+S16*1+T16*2 -> 16 | V16: =SUM(R16:T17) -> 7 | W16: =U16/V16 -> 2.285714286
C17: ０－２ | F17: ２－０ | G17: ２－０ | H17: １－１ | J17: １－１ | K17: １－１ | L17: １－０
A18: 8 | B18: 今治北C | C18: × | D18: △ | E18: ○ | F18: ○ | G18: ○ | H18: △ | I18: △ | K18: × | L18: △ | M18: =R18&" - "&S18&" - "&T18 -> 3 - 2 - 4 | N18: =U18 -> 19 | O18: =ROUND(W18,2) -> 2.11 | P18: 5 | R18: =COUNTIF(C18:L18,"○") -> 3 | S18: =COUNTIF(C18:L18,"×") -> 2 | T18: =COUNTIF(C18:L18,"△") -> 4 | U18: =R18*3+S18*1+T18*2 -> 19 | V18: =SUM(R18:T19) -> 9 | W18: =U18/V18 -> 2.111111111
C19: ０－２ | D19: １－１ | E19: ２－０ | F19: ２－０ | G19: ２－０ | H19: １－１ | I19: １－１ | K19: １－２ | L19: １－１
A20: 9 | B20: 松山商A | C20: × | D20: △ | E20: ○ | F20: ○ | G20: ○ | H20: × | I20: △ | J20: ○ | L20: × | M20: =R20&" - "&S20&" - "&T20 -> 4 - 3 - 2 | N20: =U20 -> 19 | O20: =ROUND(W20,2) -> 2.11 | P20: =RANK(W20,W$4:W$23) -> 4 | R20: =COUNTIF(C20:L20,"○") -> 4 | S20: =COUNTIF(C20:L20,"×") -> 3 | T20: =COUNTIF(C20:L20,"△") -> 2 | U20: =R20*3+S20*1+T20*2 -> 19 | V20: =SUM(R20:T21) -> 9 | W20: =U20/V20 -> 2.111111111
C21: ０－２ | D21: １－１ | E21: ２－１ | F21: ２－１ | G21: ２－１ | H21: １－２ | I21: １－１ | J21: ２－１ | L21: ０－１
A22: 10 | B22: 伊予農A | C22: × | D22: × | E22: ○ | F22: △ | H22: × | I22: × | J22: △ | K22: ○ | M22: =R22&" - "&S22&" - "&T22 -> 2 - 4 - 2 | N22: =U22 -> 14 | O22: =ROUND(W22,2) -> 1.75 | P22: =RANK(W22,W$4:W$23) -> 6 | R22: =COUNTIF(C22:L22,"○") -> 2 | S22: =COUNTIF(C22:L22,"×") -> 4 | T22: =COUNTIF(C22:L22,"△") -> 2 | U22: =R22*3+S22*1+T22*2 -> 14 | V22: =SUM(R22:T23) -> 8 | W22: =U22/V22 -> 1.75
C23: ０－２ | D23: ０－１ | E23: ２－０ | F23: １－１ | H23: ０－２ | I23: ０－１ | J23: １－１ | K23: １－０
C25: ※ | D25: ポイントは「勝→３点、分→２点、負→１点、棄権→０点」で計算。得点率は「ポイント÷試合数」で計算。
C26: ※ | D26: 今治北Cと松山商Aは同率のため、直接対決の結果で順位を決定。

Sheet 女子一般 (順位)
A1: 女子一般（順位リーグ） ３７～４０コート（３日目は３６～４０コート）
P2: ※ 予選の結果を持ち越す。
C3: =B4 -> 宇和島東C | D3: =B6 -> 観音寺第一B | E3: =B8 -> 松山商C | F3: =B10 -> 松山商B | G3: =B12 -> 富岡西B | H3: =B14 -> 富岡西A | I3: =B16 -> 宇和島東D | J3: =B18 -> 津島 | K3: =B20 -> 観音寺第一A | L3: =B22 -> 伊予農C | M3: 勝敗 | N3: ポイント | O3: 得点率 | P3: 順位 | R3: 勝 | S3: 負 | T3: 分 | U3: ポイント | V3: 試合数 | W3: 勝率
A4: 1 | B4: 宇和島東C | D4: ○ | E4: ○ | F4: ○ | G4: ○ | H4: △ | J4: ○ | K4: △ | L4: ○ | M4: =R4&" - "&S4&" - "&T4 -> 6 - 0 - 2 | N4: =U4 -> 22 | O4: =ROUND(W4,2) -> 2.75 | P4: =RANK(W4,W$4:W$23) -> 2 | R4: =COUNTIF(C4:L4,"○") -> 6 | S4: =COUNTIF(C4:L4,"×") -> 0 | T4: =COUNTIF(C4:L4,"△") -> 2 | U4: =R4*3+S4*1+T4*2 -> 22 | V4: =SUM(R4:T5) -> 8 | W4: =U4/V4 -> 2.75
D5: ２－０ | E5: ２－０ | F5: ２－０ | G5: ２－０ | H5: １－１ | J5: ２－０ | K5: １－１ | L5: ２－０
A6: 2 | B6: 観音寺第一B | C6: × | E6: △ | F6: ○ | G6: ○ | H6: × | I6: × | J6: × | L6: ○ | M6: =R6&" - "&S6&" - "&T6 -> 3 - 4 - 1 | N6: =U6 -> 15 | O6: =ROUND(W6,2) -> 1.88 | P6: =RANK(W6,W$4:W$23) -> 6 | R6: =COUNTIF(C6:L6,"○") -> 3 | S6: =COUNTIF(C6:L6,"×") -> 4 | T6: =COUNTIF(C6:L6,"△") -> 1 | U6: 15 | V6: =SUM(R6:T7) -> 8 | W6: =U6/V6 -> 1.875
C7: ０－２ | E7: １－１ | F7: ２－１ | G7: ２－０ | H7: ０－２ | I7: ０－２ | J7: ０－２ | L7: ２－０
A8: 3 | B8: 松山商C | C8: × | D8: △ | G8: ○ | H8: × | I8: × | J8: × | K8: × | L8: △ | M8: =R8&" - "&S8&" - "&T8 -> 1 - 5 - 2 | N8: =U8 -> 12 | O8: =ROUND(W8,2) -> 1.5 | P8: 8 | R8: =COUNTIF(C8:L8,"○") -> 1 | S8: =COUNTIF(C8:L8,"×") -> 5 | T8: =COUNTIF(C8:L8,"△") -> 2 | U8: =R8*3+S8*1+T8*2 -> 12 | V8: =SUM(R8:T9) -> 8 | W8: =U8/V8 -> 1.5
C9: ０－２ | D9: １－１ | G9: ２－０ | H9: ０－１ | I9: ０－２ | J9: １－２ | K9: ０－１ | L9: １－１
A10: 4 | B10: 松山商B | C10: × | D10: × | G10: ○ | H10: × | I10: × | J10: × | K10: × | L10: ○ | M10: =R10&" - "&S10&" - "&T10 -> 2 - 6 - 0 | N10: =U10 -> 12 | O10: =ROUND(W10,2) -> 1.5 | P10: =RANK(W10,W$4:W$23) -> 7 | R10: =COUNTIF(C10:L10,"○") -> 2 | S10: =COUNTIF(C10:L10,"×") -> 6 | T10: =COUNTIF(C10:L10,"△") -> 0 | U10: =R10*3+S10*1+T10*2 -> 12 | V10: =SUM(R10:T11) -> 8 | W10: =U10/V10 -> 1.5
C11: ０－２ | D11: １－２ | G11: ２－０ | H11: ０－２ | I11: ０－２ | J11: ０－２ | K11: ０－２ | L11: ２－０
A12: 5 | B12: 富岡西B | C12: × | D12: × | E12: × | F12: × | I12: × | J12: × | K12: × | L12: △ | M12: =R12&" - "&S12&" - "&T12 -> 0 - 7 - 1 | N12: =U12 -> 9 | O12: =ROUND(W12,2) -> 1.13 | P12: =RANK(W12,W$4:W$23) -> 10 | R12: =COUNTIF(C12:L12,"○") -> 0 | S12: =COUNTIF(C12:L12,"×") -> 7 | T12: =COUNTIF(C12:L12,"△") -> 1 | U12: =R12*3+S12*1+T12*2 -> 9 | V12: =SUM(R12:T13) -> 8 | W12: =U12/V12 -> 1.125
C13: ０－２ | D13: ０－２ | E13: ０－２ | F13: ０－２ | I13: ０－２ | J13: ０－２ | K13: ０－２ | L13: １－１
A14: 6 | B14: 富岡西A | C14: △ | D14: ○ | E14: ○ | F14: ○ | I14: × | J14: △ | K14: ○ | L14: ○ | M14: =R14&" - "&S14&" - "&T14 -> 5 - 1 - 2 | N14: =U14 -> 20 | O14: =ROUND(W14,2) -> 2.5 | P14: =RANK(W14,W$4:W$23) -> 3 | R14: =COUNTIF(C14:L14,"○") -> 5 | S14: =COUNTIF(C14:L14,"×") -> 1 | T14: =COUNTIF(C14:L14,"△") -> 2 | U14: =R14*3+S14*1+T14*2 -> 20 | V14: =SUM(R14:T15) -> 8 | W14: =U14/V14 -> 2.5
C15: １－１ | D15: ２－０ | E15: １－０ | F15: ２－０ | I15: ０－１ | J15: １－１ | K15: ２－０ | L15: ２－０
A16: 7 | B16: 宇和島東D | D16: ○ | E16: ○ | F16: ○ | G16: ○ | H16: ○ | J16: △ | K16: ○ | L16: ○ | M16: =R16&" - "&S16&" - "&T16 -> 7 - 0 - 1 | N16: =U16 -> 23 | O16: =ROUND(W16,2) -> 2.88 | P16: =RANK(W16,W$4:W$23) -> 1 | R16: =COUNTIF(C16:L16,"○") -> 7 | S16: =COUNTIF(C16:L16,"×") -> 0 | T16: =COUNTIF(C16:L16,"△") -> 1 | U16: =R16*3+S16*1+T16*2 -> 23 | V16: =SUM(R16:T17) -> 8 | W16: =U16/V16 -> 2.875
D17: ２－０ | E17: ２－０ | F17: ２－０ | G17: ２－０ | H17: １－０ | J17: １－１ | K17: ２－０ | L17: ２－０
A18: 8 | B18: 津島 | C18: × | D18: ○ | E18: ○ | F18: ○ | G18: ○ | H18: △ | I18: △ | K18: ○ | L18: △ | M18: =R18&" - "&S18&" - "&T18 -> 5 - 1 - 3 | N18: =U18 -> 22 | O18: =ROUND(W18,2) -> 2.44 | P18: =RANK(W18,W$4:W$23) -> 4 | R18: =COUNTIF(C18:L18,"○") -> 5 | S18: =COUNTIF(C18:L18,"×") -> 1 | T18: =COUNTIF(C18:L18,"△") -> 3 | U18: =R18*3+S18*1+T18*2 -> 22 | V18: =SUM(R18:T19) -> 9 | W18: =U18/V18 -> 2.444444444
C19: ０－２ | D19: ２－０ | E19: ２－１ | F19: ２－０ | G19: ２－０ | H19: １－１ | I19: １－１ | K19: ２－０ | L19: １－１
A20: 9 | B20: 観音寺第一A | C20: △ | E20: ○ | F20: ○ | G20: ○ | H20: × | I20: × | J20: × | L20: ○ | M20: =R20&" - "&S20&" - "&T20 -> 4 - 3 - 1 | N20: =U20 -> 17 | O20: =ROUND(W20,2) -> 2.13 | P20: =RANK(W20,W$4:W$23) -> 5 | R20: =COUNTIF(C20:L20,"○") -> 4 | S20: =COUNTIF(C20:L20,"×") -> 3 | T20: =COUNTIF(C20:L20,"△") -> 1 | U20: =R20*3+S20*1+T20*2 -> 17 | V20: =SUM(R20:T21) -> 8 | W20: =U20/V20 -> 2.125
C21: １－１ | E21: １－０ | F21: ２－０ | G21: ２－０ | H21: ０－２ | I21: ０－２ | J21: ０－２ | L21: ２－０
A22: 10 | B22: 伊予農C | C22: × | D22: × | E22: △ | F22: × | G22: △ | H22: × | I22: × | J22: △ | K22: × | M22: =R22&" - "&S22&" - "&T22 -> 0 - 6 - 3 | N22: =U22 -> 12 | O22: =ROUND(W22,2) -> 1.33 | P22: =RANK(W22,W$4:W$23) -> 9 | R22: =COUNTIF(C22:L22,"○") -> 0 | S22: =COUNTIF(C22:L22,"×") -> 6 | T22: =COUNTIF(C22:L22,"△") -> 3 | U22: =R22*3+S22*1+T22*2 -> 12 | V22: =SUM(R22:T23) -> 9 | W22: =U22/V22 -> 1.333333333
C23: ０－２ | D23: ０－２ | E23: １－１ | F23: ０－２ | G23: １－１ | H23: ０－２ | I23: ０－２ | J23: １－１ | K23: ０－２
C25: ※ | D25: ポイントは「勝→３点、分→２点、負→１点、棄権→０点」で計算。得点率は「ポイント÷試合数」で計算。
C26: ※ | D26: 松山商Bと松山商Cは同率のため、勝ち数で順位を決定。
